{"text_format":"1","workbook":"xlsx","n_sheets":3,"sheets":["index","ST-tems -138","Templete"],"not_rendered":{"charts":0,"images":0,"macros":1,"external_links":0,"defined_names":1,"comments":0,"pivot_tables":0},"unopened":[],"bounds":{"document_bytes":16777216,"sheet_cells":100000,"rows_first":2000,"rows_last":500,"rows_between":2000,"halvings":0,"cell_chars":16384,"cell_head_chars":4096},"cells_cut":0,"cells_raw":0,"read":"whole","date_system":"1900"}

{"sheet":"index","index":0,"n_rows":4,"n_cols":5,"rows_kept":4,"cut":false,"hidden":false,"merged":[]}
[]
[]
[null,null,"رقم الطلبيه","التاريخ ","امين المخزن"]
[null,"go to it",138001,"1981-10-25"]

{"sheet":"ST-tems -138","index":1,"n_rows":1172,"n_cols":9,"rows_kept":1172,"cut":false,"hidden":false,"merged":[]}
[null,null,null,null,null,"الكود","الصنف","المجموعه","الوحده"]
[null,null,null,null,null,110309304,"         تراوت     ","اسماك مدخنة","KGM"]
[null,null,null,null,null,110805104," كمومبرت كج","جبن مطبوخ","EA."]
[null,null,null,null,null,110805603,"  بيبي بل   ","جبن مطبوخ","EA."]
[null,null,null,null,null,111103324,"كبدبط حلل ","فواجراة","EA."]
[null,null,null,null,null,120101107,"   كبدة      ","بتلو","KGM"]
[null,null,null,null,null,120101109,"  بتلومشفى  ","بتلو","KGM"]
[null,null,null,null,null,120101110,"ف/م 4أجزاء","بتلو","KGM"]
[null,null,null,null,null,120101111," بتلو","VEEL  فلتو","KGM"]
[null,null,null,null,null,120101112,"    بتلوروزبيف","بتلو","KGM"]
[null,null,null,null,null,120101115,"  فلتو بتلو ","بتلو","KGM"]
[null,null,null,null,null,120101117,"كبدةبتلو/م","بتلو","KGM"]
[null,null,null,null,null,120101123," ف/بتلو4قطع","بتلو","KGM"]
[null,null,null,null,null,120102107,"                ف/ضا/مشفى ","ضانى","KGM"]
[null,null,null,null,null,120102109,"                افخاد ضانى","ضانى","KGM"]
[null,null,null,null,null,120102111,"                ريش ضانى/ب","ضانى","KGM"]
[null,null,null,null,null,120102112,"                فخدضانى عظ","ضانى","KGM"]
[null,null,null,null,null,120102113,"                ريش ضانى م","ضانى","KGM"]
[null,null,null,null,null,120102115,"                ريش ضانى  ","ضانى","KGM"]
[null,null,null,null,null,120103103,"               عروق      ","كندوز","KGM"]
[null,null,null,null,null,120103111,"               روزبيف    ","كندوز","KGM"]
[null,null,null,null,null,120103203,"               كندوز","Nفلتومستور","KGM"]
[null,null,null,null,null,120103204,"               وش فخدة مس","كندوز","KGM"]
[null,null,null,null,null,120103208,"               فلتو/ك/بلد","كندوز","KGM"]
[null,null,null,null,null,120103210,"               ظهرفخدةبرا","كندوز","KGM"]
[null,null,null,null,null,120103211,"               امامى كتف ","كندوز","KGM"]
[null,null,null,null,null,120103212,"               ج امامى سن","كندوز","KGM"]
[null,null,null,null,null,120103213,"               امامى موزة","كندوز","KGM"]
[null,null,null,null,null,120103214,"               وش ف برزيل","كندوز","KGM"]
[null,null,null,null,null,120103215,"               ك/ظهرفخدةأ","كندوز","KGM"]
[null,null,null,null,null,120103217,"               كتف كندوزم","كندوز","KGM"]
[null,null,null,null,null,120109106,"      فرنك فورتر","لحوم نصف مصنعة","KGM"]
[null,null,null,null,null,120109113,"      سجق فراخ ل","لحوم نصف مصنعة","KGM"]
[null,null,null,null,null,120109114,"      سجق بقرى  ","لحوم نصف مصنعة","KGM"]
[null,null,null,null,null,120110010," كبيبةمينى ","لحوم مصنعه سندوتشات","KGM"]
[null,null,null,null,null,120110011," كبيبةكبيرة","لحوم مصنعه سندوتشات","KGM"]
[null,null,null,null,null,120110012," كبيبة فراخ","لحوم مصنعه سندوتشات","KGM"]
[null,null,null,null,null,120110013," كفتة بانيه","لحوم مصنعه سندوتشات","KGM"]
[null,null,null,null,null,120201202,"            لحم صدر   ","ديك رومى","KGM"]
[null,null,null,null,null,120202102,"                فراخ مجمدة","فراخ","EA."]
[null,null,null,null,null,120202201,"                صدرمشفى   ","فراخ","KGM"]
[null,null,null,null,null,120202206,"                وراك مخلية","فراخ","KGM"]
[null,null,null,null,null,120202213,"                صدرفراخ130","فراخ","KGM"]
[null,null,null,null,null,120202214,"                صدرفرخ100ج","فراخ","KGM"]
[null,null,null,null,null,120202215,"                فراخ مجمدة","فراخ","EA."]
[null,null,null,null,null,120202231,"                فراخ برقبة","فراخ","EA."]
[null,null,null,null,null,120202232,"                ص200:160جم","فراخ","KGM"]
[null,null,null,null,null,120203102," بط مزارع  ","بط","EA."]
[null,null,null,null,null,120203103,"                  صدربط مشفى","بط","KGM"]
[null,null,null,null,null,120204101,"حمام بلدى ","حمام/سمان","EA."]
[null,null,null,null,null,120205101," بيض ابيض  ","بيض","EA."]
[null,null,null,null,null,120205106," بيض60:50جم","بيض","EA."]
[null,null,null,null,null,120301201,"فيليه     ","سمك فيليه مستورد","KGM"]
[null,null,null,null,null,120301202,"سمك فيليه ","سمك فيليه مستورد","KGM"]
[null,null,null,null,null,120301204,"موسى مجمد ","سمك فيليه مستورد","KGM"]
[null,null,null,null,null,120301208," قشر بياض  ","سمك فيليه مستورد","KGM"]
[null,null,null,null,null,120301210,"سبيط      ","سمك فيليه مستورد","KGM"]
[null,null,null,null,null,120301211,"طازج نظيف","سمك فيليه مستورد ","KGM"]
[null,null,null,null,null,120301215,"سمك سالمون","سمك فيليه مستورد","KGM"]
[null,null,null,null,null,120301216," سمك ف س بل","سمك فيليه مستورد","KGM"]
[null,null,null,null,null,120301217," سبيط مجمد ","سمك فيليه مستورد","KGM"]
[null,null,null,null,null,120301218,"سمك باسفيك","سمك فيليه مستورد","KGM"]
[null,null,null,null,null,120301219,"    استاكوزا م","سمك فيليه مستورد","KGM"]
[null,null,null,null,null,120301220,"    سمك اسكالو","سمك فيليه مستورد","KGM"]
[null,null,null,null,null,120301221,"    سمك السكا ","سمك فيليه مستورد","KGM"]
[null,null,null,null,null,120301222,"    سمك باسا  ","سمك فيليه مستورد","KGM"]
[null,null,null,null,null,120301304,"    زيل استاكو","سمك فيليه مستورد","KGM"]
[null,null,null,null,null,120301305,"    س فيلي كود","سمك فيليه مستورد","KGM"]
[null,null,null,null,null,120302101," طازج      ","جمبرى","KGM"]
[null,null,null,null,null,120302108,"  ج/بقشرةمتو","جمبرى","KGM"]
[null,null,null,null,null,120302202,"  مجمد متوسط","جمبرى","KGM"]
[null,null,null,null,null,120302203," جمبو15كيلو","جمبرى","KGM"]
[null,null,null,null,null,120302205,"   جمبرىم/بدو","جمبرى","KGM"]
[null,null,null,null,null,120302209,"  ج/صغيربدون","جمبرى","KGM"]
[null,null,null,null,null,120302210," صغيربدو100","جمبرى","KGM"]
[null,null,null,null,null,120302212,"   ج110/100/ب","جمبرى","KGM"]
[null,null,null,null,null,120303201,"    مجمده     ","ستاكوزا","KGM"]
[null,null,null,null,null,120304302,"علب 1715جم","تونةعلب","TIN"]
[null,null,null,null,null,120304303," ع/ تونه170","تونةعلب","TIN"]
[null,null,null,null,null,120304304,"علبة 160جم","تونةعلب","TIN"]
[null,null,null,null,null,120304306," تونة150جرا","تونةعلب","TIN"]
[null,null,null,null,null,120304310,"  تونة1700جم","تونةعلب","TIN"]
[null,null,null,null,null,120304311,"  علبة1850جم","تونةعلب","TIN"]
[null,null,null,null,null,120304312,"  تونه روز  ","تونةعلب","TIN"]
[null,null,null,null,null,120304314," تونه185جم ","تونةعلب","TIN"]
[null,null,null,null,null,120304318,"تونةقطع140","تونةعلب","TIN"]
[null,null,null,null,null,120304319,"  تونةقطع185","تونةعلب","TIN"]
[null,null,null,null,null,120305304," كفيار احمر","كافيار","JAR"]
[null,null,null,null,null,120305305,"  كفيار اسود","كافيار","JAR"]
[null,null,null,null,null,120307301,"علبة50جرام","انشوجةبالزيت","TIN"]
[null,null,null,null,null,120309303," سيمون     ","اسماك مدخنة","KGM"]
[null,null,null,null,null,120309305,"  تراوت مدخن","اسماك مدخنة","KGM"]
[null,null,null,null,null,120310202," كا/صـوابع ","كابوريا","KGM"]
[null,null,null,null,null,120311100,"  بقرى مدخن ","لحوم مدخنة","KGM"]
[null,null,null,null,null,120311101,"  رومى مدخن ","لحوم مدخنة","KGM"]
[null,null,null,null,null,120311103,"  فراخ مدخنة","لحوم مدخنة","KGM"]
[null,null,null,null,null,120311108,"  تيرين خضار","لحوم مدخنة","KGM"]
[null,null,null,null,null,120311110,"  ص بط مدخن ","لحوم مدخنة","KGM"]
[null,null,null,null,null,120311111,"  سلمى مطهى ","لحوم مدخنة","KGM"]
[null,null,null,null,null,120311112,"  روستو بقرى","لحوم مدخنة","KGM"]
[null,null,null,null,null,120311114,"  فراخ روستو","لحوم مدخنة","KGM"]
[null,null,null,null,null,120311116,"   فراخ جيلتي","لحوم مدخنة","KGM"]
[null,null,null,null,null,120311117," تلبينكو مد","لحوم مدخنة","KGM"]
[null,null,null,null,null,120311118,"  ترين سلمون","لحوم مدخنة","KGM"]
[null,null,null,null,null,120311122," ترين بط   ","لحوم مدخنة","KGM"]
[null,null,null,null,null,120401202," مجمدة كجم ","بسلة خضراء","KGM"]
[null,null,null,null,null,120401307,"   بسله بجزر ","بسلة خضراء","KGM"]
[null,null,null,null,null,120402202," مجمدة كجم0","بامية","KGM"]
[null,null,null,null,null,120403202,"       مجمدة كجم ","فاصوليا خضراء","KGM"]
[null,null,null,null,null,120404202,"خرشوف مجمد","خرشوف","KGM"]
[null,null,null,null,null,120405102," بوم فريتس ","بطاطس","KGM"]
[null,null,null,null,null,120405110," بطا/روندال","بطاطس","KGM"]
[null,null,null,null,null,120405303," بطاطس سوتي","بطاطس","KGM"]
[null,null,null,null,null,120405306," بطاطس بودر","بطاطس","KGM"]
[null,null,null,null,null,120405307," كروكيت","بطاطس    ","KGM"]
[null,null,null,null,null,120405308," بطاطس هاش ","بطاطس","KGM"]
[null,null,null,null,null,120405309,"كروكت فراخ","بطاطس","KGM"]
[null,null,null,null,null,120405310," ب /لوريت  ","بطاطس","KGM"]
[null,null,null,null,null,120405312," بط مكعبات ","بطاطس","KGM"]
[null,null,null,null,null,120406103,"بودرةكجم  ","ثوم","KGM"]
[null,null,null,null,null,120407308," صلصة3كيلو ","طماطم","TIN"]
[null,null,null,null,null,122,"مجففة680جم","طماطم","TIN"]
[null,null,null,null,null,120407325," ط/مقشر2500","طماطم","TIN"]
[null,null,null,null,null,120407326,"  ط/مجفف280 ","طماطم","JAR"]
[null,null,null,null,null,120407327,"  ط/مقش2550ج","طماطم","TIN"]
[null,null,null,null,null,120407328,"طم400جممقش","طماطم","TIN"]
[null,null,null,null,null,120407336," طماطم2850ج","طماطم","TIN"]
[null,null,null,null,null,120409202," مجمدة كجم ","سبانخ","KGM"]
[null,null,null,null,null,120414203," محشى ورق ع","ورق عنب","KGM"]
[null,null,null,null,null,120414304," محش ورق عن","ورق عنب","KGM"]
[null,null,null,null,null,120416316,"صافى2840جم","مشروم","TIN"]
[null,null,null,null,null,120416318," م/ش 850/جم","مشروم","TIN"]
[null,null,null,null,null,120416319," ص 425/م","مشروم800","TIN"]
[null,null,null,null,null,120416320," ص 460/م","مشروم800","TIN"]
[null,null,null,null,null,120416322," مشروم مجفف","مشروم","KGM"]
[null,null,null,null,null,120416323,"مشروم صحيح","مشروم","TIN"]
[null,null,null,null,null,120416327," مشروم425جم","مشروم","TIN"]
[null,null,null,null,null,120416329,"               م/ش460/مصف","مشروم","TIN"]
[null,null,null,null,null,120425102,"قلب فجل مس","فجل","JAR"]
[null,null,null,null,null,120427102,"بروكلىمجمد","بروكلى","KGM"]
[null,null,null,null,null,120502306,"                 كمبوت820جم","خوخ","TIN"]
[null,null,null,null,null,120502307,"                 ك0خوخ800جم","خوخ","TIN"]
[null,null,null,null,null,120502310,"                 خوخ830جم  ","خوخ","TIN"]
[null,null,null,null,null,120504302,"       كمبوت850جم","كمبوت اناناس ","TIN"]
[null,null,null,null,null,120504311,"       اناناس 825","كمبوت اناناس ","TIN"]
[null,null,null,null,null,120504313,"       كمبوت اناناس ","836GMS    ","TIN"]
[null,null,null,null,null,120504316,"       أناناس 810","كمبوت اناناس ","TIN"]
[null,null,null,null,null,120504317,"       اناناس 820","كمبوت اناناس ","TIN"]
[null,null,null,null,null,120505301,"            علبة 850جم","فروت سلد","TIN"]
[null,null,null,null,null,120505302,"            فروت  820ج","فروت سلد","TIN"]
[null,null,null,null,null,120505310,"            ف0س 800جم ","فروت سلد","TIN"]
[null,null,null,null,null,120505311,"            ف س 830جم ","فروت سلد","TIN"]
[null,null,null,null,null,120506305,"                كريز كيلو ","كريز","KGM"]
[null,null,null,null,null,120508305,"                 بلحةلوزشع","بلح3","PKT"]
[null,null,null,null,null,120508309,"                 بلح5بدون ش","بلح","PKT"]
[null,null,null,null,null,120601101,"       سباجتى كجم","مكرونةوسمبوسه","KGM"]
[null,null,null,null,null,120601102,"       مقصوصة كجم","مكرونةوسمبوسه","KGM"]
[null,null,null,null,null,120601103,"       شعرية كجم ","مكرونةوسمبوسه","KGM"]
[null,null,null,null,null,120601104,"       شريط  كجم ","مكرونةوسمبوسه","KGM"]
[null,null,null,null,null,120601106,"       بنة كجم   ","مكرونةوسمبوسه","KGM"]
[null,null,null,null,null,120601109,"       مرمرية    ","مكرونةوسمبوسه","KGM"]
[null,null,null,null,null,120601112,"       لزنياسبانخ","مكرونةوسمبوسه","KGM"]
[null,null,null,null,null,120601113,"       لزانياسادة","مكرونةوسمبوسه","KGM"]
[null,null,null,null,null,120601117,"       سبرنج خضار","مكرونةوسمبوسه","KGM"]
[null,null,null,null,null,120601123,"       اسبرنج جبن","مكرونةوسمبوسه","KGM"]
[null,null,null,null,null,120601125,"       سمبوسةجبنة","مكرونةوسمبوسه","KGM"]
[null,null,null,null,null,120601126,"       سمبوسةخضار","مكرونةوسمبوسه","KGM"]
[null,null,null,null,null,120601127,"       سمبوسةلحمة","مكرونةوسمبوسه","KGM"]
[null,null,null,null,null,120601133,"       اسبرنج مشر","مكرونةوسمبوسه","KGM"]
[null,null,null,null,null,120601139,"       فتنوشينى ب","مكرونةوسمبوسه","KGM"]
[null,null,null,null,null,120601145,"       مكرونةسوست","مكرونةوسمبوسه","KGM"]
[null,null,null,null,null,120601148,"       سوسته الون","مكرونةوسمبوسه","KGM"]
[null,null,null,null,null,120601150,"       تورتل-مجفف","مكرونةوسمبوسه","KGM"]
[null,null,null,null,null,120601154,"       مكرونه بنه","مكرونةوسمبوسه","KGM"]
[null,null,null,null,null,120603103,"        دقيق سميد ","دقيق بانواعه","KGM"]
[null,null,null,null,null,120603105,"        كسكسى     ","دقيق بانواعه","KGM"]
[null,null,null,null,null,120603106,"        محلى 50كجم","دقيق بانواعه","KGM"]
[null,null,null,null,null,120603130,"        ميفن ميكس ","دقيق بانواعه","KGM"]
[null,null,null,null,null,120603132,"        رده ناعمه ","دقيق بانواعه","KGM"]
[null,null,null,null,null,120603133,"        روجن فيكس ","دقيق بانواعه","KGM"]
[null,null,null,null,null,120603134,"        ديا بلجت  ","دقيق بانواعه","KGM"]
[null,null,null,null,null,120603135,"        تيروبان   ","دقيق بانواعه","KGM"]
[null,null,null,null,null,120603137,"        برونيز ميك","دقيق بانواعه","KGM"]
[null,null,null,null,null,120603140,"        نيربان    ","دقيق بانواعه","KGM"]
[null,null,null,null,null,120603141,"        بزرقرعمقشر","دقيق بانواعه","KGM"]
[null,null,null,null,null,120603143,"        دقيق72%   ","دقيق بانواعه","KGM"]
[null,null,null,null,null,120603149,"        خبزصغيربلد","دقيق بانواعه","EA."]
[null,null,null,null,null,120603176,"        جلاش      ","دقيق بانواعه","KGM"]
[null,null,null,null,null,120603183,"        كنافة شعر ","دقيق بانواعه","KGM"]
[null,null,null,null,null,120604405,"          كورن فليكس","كورن فليكس","BOX"]
[null,null,null,null,null,120605101,"           بالكيلو   ","ارز سياحى","KGM"]
[null,null,null,null,null,120605103,"           أرز بسماتى","ارز سياحى","KGM"]
[null,null,null,null,null,120605105,"           بسمتى مغلى","ارز سياحى","KGM"]
[null,null,null,null,null,120605106,"           ارز3%كسر  ","ارز سياحى","KGM"]
[null,null,null,null,null,120606315,"                 نشا ذرة   ","نشا","KGM"]
[null,null,null,null,null,120606319,"                 بكنج ح16جر","نشا","PKT"]
[null,null,null,null,null,120606320,"                 نشاح240جرا","نشا","PKT"]
[null,null,null,null,null,120608101,"           برغل كجم  ","برغل/فريك","KGM"]
[null,null,null,null,null,120609303,"                 ناعم      ","سكر","KGM"]
[null,null,null,null,null,120609401,"                 بودره     ","سكر","KGM"]
[null,null,null,null,null,120701301,"                اسود حصى  ","فلفل","KGM"]
[null,null,null,null,null,120701302,"                ابيض كجم  ","فلفل","KGM"]
[null,null,null,null,null,120701308,"                فلفل اسود ","فلفل","KGM"]
[null,null,null,null,null,120701309,"                فلفل اسودح","فلفل","KGM"]
[null,null,null,null,null,120702301,"           فلفل احمرك","فلفل احمر","KGM"]
[null,null,null,null,null,120703301,"                 ناعمة كجم ","شطة","KGM"]
[null,null,null,null,null,120704101,"               حصى كم    ","كسبرة","KGM"]
[null,null,null,null,null,120704301,"               ناعمة كجم ","كسبرة","KGM"]
[null,null,null,null,null,120705101,"                حصى كم    ","كمون","KGM"]
[null,null,null,null,null,120705301,"                بلدى كجم  ","كمون","KGM"]
[null,null,null,null,null,120706101,"         حبهان مطحن","عطارة-حبهان","KGM"]
[null,null,null,null,null,120707102,"          مسحوق     ","جوزة الطيب","KGM"]
[null,null,null,null,null,120708301,"            و.لورو كجم","ورق لورو","KGM"]
[null,null,null,null,null,120709303,"                حبوب كارى ","كارى","JAR"]
[null,null,null,null,null,120709308,"                كارىبودرة ","كارى","KGM"]
[null,null,null,null,null,120710301,"                ناعم كجم  ","كركم","KGM"]
[null,null,null,null,null,120713301,"                ناعمة كجم ","قرفة","KGM"]
[null,null,null,null,null,120716101,"               قرنفل ناعم","قرنفل","KGM"]
[null,null,null,null,null,120718307,"                 ملح400جم  ","ملح","PKT"]
[null,null,null,null,null,120718310,"                 ملح350جرام","ملح","PKT"]
[null,null,null,null,null,120718311,"                 ملح 500جم ","ملح","PKT"]
[null,null,null,null,null,120718312,"                 ملح300جم  ","ملح","PKT"]
[null,null,null,null,null,120718313,"                 ملح250جم  ","ملح","PKT"]
[null,null,null,null,null,120718314,"                 ملح700جم ب","ملح","PKT"]
[null,null,null,null,null,120718315,"                 ملح600جم  ","ملح","PKT"]
[null,null,null,null,null,120719101,"               توابل للشى","توابل","TIN"]
[null,null,null,null,null,120719102,"               خلطةدواجن ","توابل","TIN"]
[null,null,null,null,null,120719103,"               الشرق القص","توابل","TIN"]
[null,null,null,null,null,120722301,"          بالكيلو   ","حبة البركه","KGM"]
[null,null,null,null,null,120722302,"          عصفر كيلو ","حبة البركه","KGM"]
[null,null,null,null,null,120727101,"                بالكيلو   ","زعتر","KGM"]
[null,null,null,null,null,120737103,"            نعناع2:1.5"," النعناع","BOX"]
[null,null,null,null,null,120740109,"      كركدية2جم ","         عبوات","TIN"]
[null,null,null,null,null,120740111,"      كاموميل5ز1","         عبوات","PKT"]
[null,null,null,null,null,120740112,"      بابونج 1,5","         عبوات","PKT"]
[null,null,null,null,null,120740113,"      كاموميل2جم","         عبوات","PKT"]
[null,null,null,null,null,120740115,"      ينسون2:1.5","         عبوات","TIN"]
[null,null,null,null,null,120740117,"      كركديه    ","         عبوات","KGM"]
[null,null,null,null,null,120801101,"          ثلجه   كجم","جبنة بيضاء","KGM"]
[null,null,null,null,null,120801107,"          ملح خفيف  ","جبنة بيضاء","KGM"]
[null,null,null,null,null,120801109,"          بالصفيحة ","جبنة بيضاء ","KGM"]
[null,null,null,null,null,120801111,"          فيتايونانى","جبنة بيضاء","KGM"]
[null,null,null,null,null,120801113,"          فيتا125جم ","جبنة بيضاء","TIN"]
[null,null,null,null,null,120801114,"          جبن قريش  ","جبنة بيضاء","KGM"]
[null,null,null,null,null,120801116,"          دومتى250جم","جبنة بيضاء","TIN"]
[null,null,null,null,null,120802101,"           صحيح   كجم","جبنة رومى","KGM"]
[null,null,null,null,null,120803304,"          مثلث محلى ","جبن روكفور","CRT"]
[null,null,null,null,null,120803307,"          ريكفورد25ج","جبن روكفور","EA."]
[null,null,null,null,null,120804101,"           صحيح   كجم","جبنة شيدر","KGM"]
[null,null,null,null,null,120804107,"           ج.شيدرحمرا","جبنة شيدر","KGM"]
[null,null,null,null,null,120805101,"           ايدام     ","جبن مطبوخ","KGM"]
[null,null,null,null,null,120805103,"           جودة      ","جبن مطبوخ","KGM"]
[null,null,null,null,null,120805105,"           مينى ايدام","جبن مطبوخ","KGM"]
[null,null,null,null,null,120805106,"           اميتال ط  ","جبن مطبوخ","KGM"]
[null,null,null,null,null,120805107,"           جريير     ","جبن مطبوخ","KGM"]
[null,null,null,null,null,120805111,"           ج موتزاريل","جبن مطبوخ","KGM"]
[null,null,null,null,null,120805112,"           ف/بيبى بيل","جبن مطبوخ","EA."]
[null,null,null,null,null,120805116,"           كمومبير125","جبن مطبوخ","EA."]
[null,null,null,null,null,120805117,"           جوده محلى ","جبن مطبوخ","KGM"]
[null,null,null,null,null,120805118,"           ايدام محلى","جبن مطبوخ","KGM"]
[null,null,null,null,null,120805119,"           موتزاريلاق","جبن مطبوخ","KGM"]
[null,null,null,null,null,120805120,"           كريم تشيز4","جبن مطبوخ","JRK"]
[null,null,null,null,null,120805121,"           مسكاربونى ","جبن مطبوخ","EA."]
[null,null,null,null,null,120805124,"           جبن تشز900","جبن مطبوخ","JAR"]
[null,null,null,null,null,120806301,"       باكو 200جم","جبنة فيلدلفيا","PKT"]
[null,null,null,null,null,120806303,"       فيلدفيا300","جبنة فيلدلفيا","PKT"]
[null,null,null,null,null,120806304,"       ج فيلدفيا ","جبنة فيلدلفيا","TIN"]
[null,null,null,null,null,120807304,"         ج/مطبوخةمث","جبنة مطبوخة","EA."]
[null,null,null,null,null,120808304,"           كيرى بقطعة","جبنه كيرى","EA."]
[null,null,null,null,null,120903101,"      كامل الدسم","لبن طويل العمر","PKT"]
[null,null,null,null,null,120903102,"      نصف دسم   ","لبن طويل العمر","PKT"]
[null,null,null,null,null,120903317,"      لبن 200ملى","لبن طويل العمر","TIN"]
[null,null,null,null,null,120903318,"      لبن0منزوع0","لبن طويل العمر","PKT"]
[null,null,null,null,null,120903332,"      كامل الدسم","لبن طويل العمر","LTR"]
[null,null,null,null,null,120903333,"      نصف دسم   ","لبن طويل العمر","LTR"]
[null,null,null,null,null,120903337,"      لبن كامل  ","لبن طويل العمر","PKT"]
[null,null,null,null,null,120904306,"               زبادى80فاك","زبادى","EA."]
[null,null,null,null,null,120904307,"               زبادى80جم ","زبادى","EA."]
[null,null,null,null,null,120904322,"               زبادى105جم","زبادى","EA."]
[null,null,null,null,null,120904323,"               زبادى75جم ","زبادى","EA."]
[null,null,null,null,null,120905304,"               شانتييه   ","كريمه","KGM"]
[null,null,null,null,null,120905307,"               كراميل92جم","كريمه","PKT"]
[null,null,null,null,null,120905308,"               بدون سكر  ","كريمه","KGM"]
[null,null,null,null,null,120905316,"               بودرةكريمة","كريمه","KGM"]
[null,null,null,null,null,120905324,"               كريمةنباتى","كريمه","LTR"]
[null,null,null,null,null,120905326,"               كراميل184ج","كريمه","PKT"]
[null,null,null,null,null,120905328,"               كريمه خفق ","كريمه","PKT"]
[null,null,null,null,null,120905341,"               كرميل دور ","كريمه","KGM"]
[null,null,null,null,null,120905343,"               ك لبانى كي","كريمه","KGM"]
[null,null,null,null,null,120905345,"               ويب اس حشو","كريمه","KGM"]
[null,null,null,null,null,120905351,"               تشيزميكس  ","كريمه","KGM"]
[null,null,null,null,null,120905363,"               ك/خفق بدون","كريمه","LTR"]
[null,null,null,null,null,120906001,"         جزربدون عر","خضار وفاكهه","KGM"]
[null,null,null,null,null,120906003,"         نعناع أخضر","خضار وفاكهه","KGM"]
[null,null,null,null,null,120906004,"         فلفل اخضر ","خضار وفاكهه","KGM"]
[null,null,null,null,null,120906007,"         خيار      ","خضار وفاكهه","KGM"]
[null,null,null,null,null,120906008,"         كرفس فرنس ","خضار وفاكهه","KGM"]
[null,null,null,null,null,120906009,"         كابوتشا   ","خضار وفاكهه","KGM"]
[null,null,null,null,null,120906010,"         بازنجان رو","خضار وفاكهه","KGM"]
[null,null,null,null,null,120906011,"         بازنجان بل","خضار وفاكهه","KGM"]
[null,null,null,null,null,120906012,"         بازنجان أب","خضار وفاكهه","KGM"]
[null,null,null,null,null,120906013,"         كرفس بلدى ","خضار وفاكهه","KGM"]
[null,null,null,null,null,120906015,"         فاصوليا خض","خضار وفاكهه","KGM"]
[null,null,null,null,null,120906016,"         ليمون بلدى","خضار وفاكهه","KGM"]
[null,null,null,null,null,120906017,"         طماطم سلطه","خضار وفاكهه","KGM"]
[null,null,null,null,null,120906018,"         ليمون أضال","خضار وفاكهه","KGM"]
[null,null,null,null,null,120906019,"         بطاطس     ","خضار وفاكهه","KGM"]
[null,null,null,null,null,120906020,"         كرنب أحمر ","خضار وفاكهه","KGM"]
[null,null,null,null,null,120906022,"         شبت       ","خضار وفاكهه","KGM"]
[null,null,null,null,null,120906023,"         كسبره خضرا","خضار وفاكهه","KGM"]
[null,null,null,null,null,120906024,"         بقدونس    ","خضار وفاكهه","KGM"]
[null,null,null,null,null,120906025,"         بصل جاف بل","خضار وفاكهه","KGM"]
[null,null,null,null,null,120906027,"         كوسه نوار ","خضار وفاكهه","KGM"]
[null,null,null,null,null,120906028,"         كرنب      ","خضار وفاكهه","KGM"]
[null,null,null,null,null,120906030,"         قرع عسل   ","خضار وفاكهه","KGM"]
[null,null,null,null,null,120906032,"         طماطم شيرى","خضار وفاكهه","KGM"]
[null,null,null,null,null,120906033,"         فلفل روم ص","خضار وفاكهه","KGM"]
[null,null,null,null,null,120906034,"         فلفل روم ح","خضار وفاكهه","KGM"]
[null,null,null,null,null,120906035,"         فلفل شطه  ","خضار وفاكهه","KGM"]
[null,null,null,null,null,120906036,"         كوسه كبيره","خضار وفاكهه","KGM"]
[null,null,null,null,null,120906038,"         افاوكادوا ","خضار وفاكهه","KGM"]
[null,null,null,null,null,120906039,"         روز مارى  ","خضار وفاكهه","KGM"]
[null,null,null,null,null,120906040,"         لولو روسو ","خضار وفاكهه","KGM"]
[null,null,null,null,null,120906041,"         فجل صينى  ","خضار وفاكهه","KGM"]
[null,null,null,null,null,120906042,"         زعتر      ","خضار وفاكهه","KGM"]
[null,null,null,null,null,120906043,"         ريحان     ","خضار وفاكهه","KGM"]
[null,null,null,null,null,120906044,"         كرنب ابيض ","خضار وفاكهه","EA."]
[null,null,null,null,null,120906046,"         كرات بدون ","خضار وفاكهه","KGM"]
[null,null,null,null,null,120906047,"         بنجر بدون ","خضار وفاكهه","KGM"]
[null,null,null,null,null,120906049,"         اسبارجوس  ","خضار وفاكهه","KGM"]
[null,null,null,null,null,120906050,"         ثوم صينى  ","خضار وفاكهه","KGM"]
[null,null,null,null,null,120906051,"         خس احمر   ","خضار وفاكهه","KGM"]
[null,null,null,null,null,120906502,"         عنب احمر  ","خضار وفاكهه","KGM"]
[null,null,null,null,null,120906503,"         موز مستورد","خضار وفاكهه","KGM"]
[null,null,null,null,null,120906504,"         كمثرى مستو","خضار وفاكهه","KGM"]
[null,null,null,null,null,120906505,"         برقوق مستو","خضار وفاكهه","KGM"]
[null,null,null,null,null,120906506,"         عنب ابيض  ","خضار وفاكهه","KGM"]
[null,null,null,null,null,120906507,"         عنب اسود  ","خضار وفاكهه","KGM"]
[null,null,null,null,null,120906508,"         كيوى مستور","خضار وفاكهه","EA."]
[null,null,null,null,null,120906509,"         خوخ مستورد","خضار وفاكهه","KGM"]
[null,null,null,null,null,120906511,"         انانس مستو","خضار وفاكهه","KGM"]
[null,null,null,null,null,120906512,"         موز مزارع ","خضار وفاكهه","KGM"]
[null,null,null,null,null,120906514,"         تفاح اخضرم","خضار وفاكهه","KGM"]
[null,null,null,null,null,120906515,"         تفاح احمرم","خضار وفاكهه","KGM"]
[null,null,null,null,null,120906516,"         تفاح اصفرم","خضار وفاكهه","KGM"]
[null,null,null,null,null,120906518,"         برتقال بصر","خضار وفاكهه","KGM"]
[null,null,null,null,null,120906519,"         برتقال بلد","خضار وفاكهه","KGM"]
[null,null,null,null,null,120906521,"         برتقال صيف","خضار وفاكهه","KGM"]
[null,null,null,null,null,120906522,"         يوسفى كبير","خضار وفاكهه","KGM"]
[null,null,null,null,null,120906523,"         موز مغربى ","خضار وفاكهه","KGM"]
[null,null,null,null,null,120906525,"         عنب جافكلي","خضار وفاكهه","KGM"]
[null,null,null,null,null,120906526,"         برقوق أصفر","خضار وفاكهه","KGM"]
[null,null,null,null,null,120906531,"         فراولةطازج","خضار وفاكهه","KGM"]
[null,null,null,null,null,120906532,"         كمثرى خشاب","خضار وفاكهه","KGM"]
[null,null,null,null,null,120906533,"         كانتلوب مم","خضار وفاكهه","KGM"]
[null,null,null,null,null,120906539,"         كمثرى ثلجة","خضار وفاكهه","KGM"]
[null,null,null,null,null,120906540,"         جوافة نبات","خضار وفاكهه","KGM"]
[null,null,null,null,null,120906541,"         جريب فروت ","خضار وفاكهه","KGM"]
[null,null,null,null,null,120906543,"         بطيخ5كيلوف","خضار وفاكهه","KGM"]
[null,null,null,null,null,120906544,"         يوسفىتانجد","خضار وفاكهه","KGM"]
[null,null,null,null,null,120906545,"         رومان     ","خضار وفاكهه","KGM"]
[null,null,null,null,null,120906547,"         مانجوتيمور","خضار وفاكهه","KGM"]
[null,null,null,null,null,120906549,"         عنب أحمرمس","خضار وفاكهه","KGM"]
[null,null,null,null,null,120906551,"         تفاح سكرى ","خضار وفاكهه","KGM"]
[null,null,null,null,null,120906552,"         موزبلدى   ","خضار وفاكهه","KGM"]
[null,null,null,null,null,121001306,"          طبيعى     ","مسلى طبيعى","KGM"]
[null,null,null,null,null,121001308,"          زبدة 25كجم","مسلى طبيعى","KGM"]
[null,null,null,null,null,121003301,"             علبة 935جم","زيت ذرة","TIN"]
[null,null,null,null,null,121003309,"             محلى2لتر  ","زيت ذرة","BOT"]
[null,null,null,null,null,121003311,"             زيت درة3لت","زيت ذرة","BOT"]
[null,null,null,null,null,121003313,"             زيت1لترزرة","زيت ذرة","TIN"]
[null,null,null,null,null,121004304,"         ز زيتون1لت","زيوت متنوعة","LTR"]
[null,null,null,null,null,121004308,"         سمسم500ملى","زيوت متنوعة","BOT"]
[null,null,null,null,null,121004311,"         زيت ز500م ","زيوت متنوعة","BOT"]
[null,null,null,null,null,121004312,"         زيت زيتون2","زيوت متنوعة","BOT"]
[null,null,null,null,null,121004314,"         ز زيتون500","زيوت متنوعة","BOT"]
[null,null,null,null,null,121004318,"         ز/من8ألى1 ","زيوت متنوعة","BOT"]
[null,null,null,null,null,121007101,"   ز/ع 2لتر  ","زيت نباتى للتحمير","BOT"]
[null,null,null,null,null,121007102,"   ز/ع 1لتر  ","زيت نباتى للتحمير","BOT"]
[null,null,null,null,null,121007103,"   ز/ع 3لتر  ","زيت نباتى للتحمير","BOT"]
[null,null,null,null,null,121007105,"   زيت للقلى ","زيت نباتى للتحمير","TIN"]
[null,null,null,null,null,121007107,"   زيت قلى لت","زيت نباتى للتحمير","LTR"]
[null,null,null,null,null,121007114,"   قلى390ر17ل","زيت نباتى للتحمير","TIN"]
[null,null,null,null,null,121101301,"             خ0مستور125","اكل طفل","JAR"]
[null,null,null,null,null,121101302,"             ف0مستور130","اكل طفل","JAR"]
[null,null,null,null,null,121101305,"             اكل طفل خض","اكل طفل","JAR"]
[null,null,null,null,null,121101306,"             خضار120جم ","اكل طفل","JAR"]
[null,null,null,null,null,121101307,"             فاكهه125جم","اكل طفل","JAR"]
[null,null,null,null,null,121104306,"               بقرى5ز1كجم","شوربه","TIN"]
[null,null,null,null,null,121104307,"               م/دجاج5ز1ك","شوربه","TIN"]
[null,null,null,null,null,121104308,"               شوربة سمك ","شوربه","TIN"]
[null,null,null,null,null,121104309,"               م/بقرى1100","شوربه","TIN"]
[null,null,null,null,null,121104310,"               مرقةدج1100","شوربه","TIN"]
[null,null,null,null,null,121201303,"       فاصوليا3كج","فاصوليا بيضاء","TIN"]
[null,null,null,null,null,121201304,"       بيضاء380صا","فاصوليا بيضاء","TIN"]
[null,null,null,null,null,121201305,"       فصولياب/صل","فاصوليا بيضاء","TIN"]
[null,null,null,null,null,121201308,"       فاصوليا400","فاصوليا بيضاء","TIN"]
[null,null,null,null,null,121202101,"                 عدس اصفر ك","عدس","KGM"]
[null,null,null,null,null,121202103,"                 بجبة كيلو ","عدس","KGM"]
[null,null,null,null,null,121204308,"            فو2800جم/ص","فول مدمس","TIN"]
[null,null,null,null,null,121204309,"            فول م3كيلو","فول مدمس","TIN"]
[null,null,null,null,null,121204313,"            حمراء380صا","فول مدمس","TIN"]
[null,null,null,null,null,121204314,"            ف/ح400/ج ص","فول مدمس","TIN"]
[null,null,null,null,null,121204315,"            فاصوليا ح ","فول مدمس","TIN"]
[null,null,null,null,null,121204318,"            فصوليا حمر","فول مدمس","TIN"]
[null,null,null,null,null,121204319,"            ف/ح2500/جم","فول مدمس","TIN"]
[null,null,null,null,null,121204320,"            فصوليا حمر","فول مدمس","TIN"]
[null,null,null,null,null,121204331,"            فول400جرام","فول مدمس","TIN"]
[null,null,null,null,null,121204332,"            فول ح 350 ","فول مدمس","TIN"]
[null,null,null,null,null,121205102,"                أبيض كم   ","سمسم","KGM"]
[null,null,null,null,null,121206303,"      (بيبىكور400","ذرة(بيبى كورن","CRT"]
[null,null,null,null,null,121206305,"      (ذ/ح950/ز2ص","ذرة(بيبى كورن","TIN"]
[null,null,null,null,null,121206306,"      (ص      ","ذرة(بيبى كورن425","TIN"]
[null,null,null,null,null,121206308,"      (درةحب410جم","ذرة(بيبى كورن","TIN"]
[null,null,null,null,null,121206309,"      (عبوات ذرة ","ذرة(بيبى كورن","TIN"]
[null,null,null,null,null,121206310,"      (ذرة850ز2ص ","ذرة(بيبى كورن","TIN"]
[null,null,null,null,null,121206311,"      (ذرة425صافى","ذرة(بيبى كورن","TIN"]
[null,null,null,null,null,121206314,"      (حبوب ذره,,","ذرة(بيبى كورن","TIN"]
[null,null,null,null,null,121206315,"      (حبوب ذره  ","ذرة(بيبى كورن","TIN"]
[null,null,null,null,null,121206317,"      (ذره كورن  ","ذرة(بيبى كورن","TIN"]
[null,null,null,null,null,121206318,"      (ح ذره2125ج","ذرة(بيبى كورن","TIN"]
[null,null,null,null,null,121206319,"      (ح/دره425مص","ذرة(بيبى كورن","TIN"]
[null,null,null,null,null,121207303,"                 حمص مطبوخ3","حمص","TIN"]
[null,null,null,null,null,121207305,"                 ح/ش 400/جم","حمص","TIN"]
[null,null,null,null,null,121207308,"                 ح/مسلوق380","حمص","TIN"]
[null,null,null,null,null,121301102,"               أسود مخلى ","زيتون","KGM"]
[null,null,null,null,null,121301310,"               طبيعىمحلى ","زيتون","KGM"]
[null,null,null,null,null,121301311,"               زتون شرائح","زيتون","KGM"]
[null,null,null,null,null,121301312,"               زتون1600مص","زيتون","TIN"]
[null,null,null,null,null,121301313,"               ز/م00/1600","زيتون","TIN"]
[null,null,null,null,null,121301314,"               ز/ش/اسود  ","زيتون","TIN"]
[null,null,null,null,null,121301315,"               ز/م1450م/س","زيتون","TIN"]
[null,null,null,null,null,121301318,"               اسود/م1560","زيتون","TIN"]
[null,null,null,null,null,121301319,"               اسودم2200ج","زيتون","TIN"]
[null,null,null,null,null,121302307,"                مشكل كيلو ","مخلل","KGM"]
[null,null,null,null,null,121302313,"                بصل مخلل  ","مخلل","KGM"]
[null,null,null,null,null,121302314,"                خيارقشةمخل","مخلل","KGM"]
[null,null,null,null,null,121302316,"                خيار فرنس ","مخلل","TIN"]
[null,null,null,null,null,121302317,"                بصل360مخلل","مخلل","JAR"]
[null,null,null,null,null,121302318,"                م/بصل330جم","مخلل","JAR"]
[null,null,null,null,null,121302319,"                م-خيار310ج","مخلل","JAR"]
[null,null,null,null,null,121302320,"                خ/مخلل680ج","مخلل","JAR"]
[null,null,null,null,null,121302321,"                خيار360جم ","مخلل","JAR"]
[null,null,null,null,null,121303303,"         كابرى750جم","كابرى بالخل","JAR"]
[null,null,null,null,null,121303311,"         حبوب كابرى","كابرى بالخل","JAR"]
[null,null,null,null,null,121303312,"         حبوب كابرى","كابرى بالخل","JAR"]
[null,null,null,null,null,121304501,"               جم محلى","كاتشب340","BOT"]
[null,null,null,null,null,121304506,"               كاتشب200جم","كاتشب","JAR"]
[null,null,null,null,null,121304507,"               كتشب ح 10ج","كاتشب","PKT"]
[null,null,null,null,null,121304508,"               كاتشب9جرام","كاتشب","PKT"]
[null,null,null,null,null,121305319,"                 صوص أبيض  ","صوص","TIN"]
[null,null,null,null,null,121305324,"                 ص محار500ج","صوص","BOT"]
[null,null,null,null,null,121305325,"                 ص /صويالتر","صوص","BOT"]
[null,null,null,null,null,121305335,"                 ص/كوكى مان","صوص","LTR"]
[null,null,null,null,null,121305338,"                 صويا كوكى2","صوص","BOT"]
[null,null,null,null,null,121305341,"                 صوص 900تيل","صوص","TIN"]
[null,null,null,null,null,121306323,"      م /السحرى ","مستردةومايونيز","JRK"]
[null,null,null,null,null,121306327,"      مستردة4كجم","مستردةومايونيز","JAR"]
[null,null,null,null,null,121306331,"      مسترده محب","مستردةومايونيز","JAR"]
[null,null,null,null,null,121306332,"      مسترده محل","مستردةومايونيز","TIN"]
[null,null,null,null,null,121306335,"      مينز3290جم","مستردةومايونيز","JRK"]
[null,null,null,null,null,121306336,"      مايونيزح10","مستردةومايونيز","PKT"]
[null,null,null,null,null,121307101,"               سايبه  كجم","طحينة","KGM"]
[null,null,null,null,null,121401310,"        تاك 40جرام","بسكويت انواع","PKT"]
[null,null,null,null,null,121401419,"        جم6قطع  ","بسكويت انواع50","PKT"]
[null,null,null,null,null,121401460,"        بيك رولزص ","بسكويت انواع","EA."]
[null,null,null,null,null,121401462,"        تونكيز    ","بسكويت انواع","EA."]
[null,null,null,null,null,121401490,"        كاكوفا36جر","بسكويت انواع","PKT"]
[null,null,null,null,null,121401491,"        بسكوت وافر","بسكويت انواع","PKT"]
[null,null,null,null,null,121401493,"        بسكوت لمبا","بسكويت انواع","PKT"]
[null,null,null,null,null,121401508,"        بسكوكاكا24","بسكويت انواع","PKT"]
[null,null,null,null,null,121401646,"        شيبس34:30ج","بسكويت انواع","PKT"]
[null,null,null,null,null,121401668,"        بوريو6قطع ","بسكويت انواع","EA."]
[null,null,null,null,null,121401670,"        اوريو3قطع ","بسكويت انواع","EA."]
[null,null,null,null,null,121402307,"             فارميسيل1ك","شيكولتة","KGM"]
[null,null,null,null,null,121402324,"             ك0ساده    ","شيكولتة","KGM"]
[null,null,null,null,null,121402330,"             كفرتور2500","شيكولتة","PKT"]
[null,null,null,null,null,121402341,"             ش/كفر2500ج","شيكولتة","PKT"]
[null,null,null,null,null,121402346,"             بلبن سادة ","شيكولتة","CRT"]
[null,null,null,null,null,121402395,"             سويزا15جم ","شيكولتة","BOX"]
[null,null,null,null,null,121402433,"             شكولتةفلتس","شيكولتة","PKT"]
[null,null,null,null,null,121402436,"             شكولتة17جم","شيكولتة","EA."]
[null,null,null,null,null,121402458,"             طوفى كيلو ","شيكولتة","KGM"]
[null,null,null,null,null,121402459,"             شوكولتة11ج","شيكولتة","EA."]
[null,null,null,null,null,121403303,"               ب0أاخرى   ","كاكاو","KGM"]
[null,null,null,null,null,121501320,"                مربىفراوله","مربى","KGM"]
[null,null,null,null,null,121501321,"                مربىمشمش  ","مربى","KGM"]
[null,null,null,null,null,121501324,"                مشمش  ك   ","مربى","KGM"]
[null,null,null,null,null,121502307,"             جلوكوز    ","عسل نحل","KGM"]
[null,null,null,null,null,121601301,"    مشمشية1كج ","فواكه جافة/مسكرة","KGM"]
[null,null,null,null,null,121601303,"    زبيب مستور","فواكه جافة/مسكرة","KGM"]
[null,null,null,null,null,121601305,"    قراصيا كج ","فواكه جافة/مسكرة","KGM"]
[null,null,null,null,null,121601307,"    قشرةمسكرة ","فواكه جافة/مسكرة","KGM"]
[null,null,null,null,null,121602301,"           كيلومستورد","قمر الدين","KGM"]
[null,null,null,null,null,121603301,"             مبشور   كج","جوز هند","KGM"]
[null,null,null,null,null,121604301,"              بندق مقشرك","مكسرات","KGM"]
[null,null,null,null,null,121604302,"              لوز  كيلو ","مكسرات","KGM"]
[null,null,null,null,null,121604303,"              فستق مقشرك","مكسرات","KGM"]
[null,null,null,null,null,121604305,"              عين جمل   ","مكسرات","KGM"]
[null,null,null,null,null,121604307,"              لوزشرائح  ","مكسرات","KGM"]
[null,null,null,null,null,121605306,"          بدون ملح ك","فول سودانى","KGM"]
[null,null,null,null,null,121605603,"          باكو25:20ج","فول سودانى","PKT"]
[null,null,null,null,null,121706301,"                  ابيض زجاجة","خل","BOT"]
[null,null,null,null,null,121706306,"                  زجاجة900جم","خل","BOT"]
[null,null,null,null,null,121706307,"                  بلسمك500مل","خل","BOT"]
[null,null,null,null,null,121706308,"                  خل أبيض925","خل","BOT"]
[null,null,null,null,null,121706309,"                  خ/طبيعى850","خل","BOT"]
[null,null,null,null,null,121706310,"                  خل1لترأبيض","خل","BOT"]
[null,null,null,null,null,121707104,"             بودرةمحلى ","جيلتينا","KGM"]
[null,null,null,null,null,121707307,"             جيلي فكس  ","جيلتينا","TIN"]
[null,null,null,null,null,121707312,"             جيلى تزين ","جيلتينا","TIN"]
[null,null,null,null,null,121707314,"             تو/فواكهه ","جيلتينا","BOT"]
[null,null,null,null,null,121707315,"             توب/ف1/كجم","جيلتينا","BOT"]
[null,null,null,null,null,121707316,"             توبنج /ش  ","جيلتينا","BOT"]
[null,null,null,null,null,121707319,"             توبنج1100ج","جيلتينا","BOT"]
[null,null,null,null,null,121707320,"             توبنج1100ج","جيلتينا","BOT"]
[null,null,null,null,null,121707321,"             جيلاتينا  ","جيلتينا","KGM"]
[null,null,null,null,null,121707322,"             ب/ج/كرمل5ك","جيلتينا","JRK"]
[null,null,null,null,null,121707326,"             بابنج كرمل","جيلتينا","KGM"]
[null,null,null,null,null,121707327,"             بابنج شكول","جيلتينا","KGM"]
[null,null,null,null,null,121707328,"             بابنج شفاف","جيلتينا","KGM"]
[null,null,null,null,null,121707331,"             جيلى ساخن ","جيلتينا","KGM"]
[null,null,null,null,null,121707333,"             ببينج شيكو","جيلتينا","KGM"]
[null,null,null,null,null,121707334,"             جيل ع بارد","جيلتينا","KGM"]
[null,null,null,null,null,121707335,"             جيلي فراول","جيلتينا","KGM"]
[null,null,null,null,null,121708101,"             بالكيلو   ","فانيليا","KGM"]
[null,null,null,null,null,121710102,"                 لون اصفر  ","لون","KGM"]
[null,null,null,null,null,121710103,"                 لون أخضر  ","لون","KGM"]
[null,null,null,null,null,121711307,"    مسحوق خبيز","خميرة/بيكينجبودر","KGM"]
[null,null,null,null,null,121711308,"    خميرة500جم","خميرة/بيكينجبودر","PKT"]
[null,null,null,null,null,121711310,"    خ0تركى450ج","خميرة/بيكينجبودر","PKT"]
[null,null,null,null,null,121711311,"    خ.محلى450ج","خميرة/بيكينجبودر","PKT"]
[null,null,null,null,null,121712104,"      كيك اسفنجى","محسنات خبزوكيك","KGM"]
[null,null,null,null,null,121712107,"      كيك ميكس  ","محسنات خبزوكيك","KGM"]
[null,null,null,null,null,121712109,"      مارزبان","محسنات خبزوكيك   ","KGM"]
[null,null,null,null,null,121712110,"      بلك فورست","محسنات خبزوكيك ","KGM"]
[null,null,null,null,null,121712111,"      موس فراولة","محسنات خبزوكيك","KGM"]
[null,null,null,null,null,121712113,"      محسن خبز","محسنات خبزوكيك  ","KGM"]
[null,null,null,null,null,121712114,"      موس فانيلي","محسنات خبزوكيك","KGM"]
[null,null,null,null,null,121712115,"      موس شكولته","محسنات خبزوكيك","KGM"]
[null,null,null,null,null,121712120,"      شكو تيرامي","محسنات خبزوكيك","KGM"]
[null,null,null,null,null,121712123,"      سوبربيتا  ","محسنات خبزوكيك","KGM"]
[null,null,null,null,null,121712125,"      محسنات خبزوكيك"," Eسوبرجاما","KGM"]
[null,null,null,null,null,121712127,"      بودرةكك اح","محسنات خبزوكيك","KGM"]
[null,null,null,null,null,121805304,"           توت احمر4ك","حشو تورتة","TIN"]
[null,null,null,null,null,121805312,"           حشوعنب اسو","حشو تورتة","TIN"]
[null,null,null,null,null,121805319,"           حشوتفاح4كي","حشو تورتة","JRK"]
[null,null,null,null,null,121805331,"           حشوفرولةمح","حشو تورتة","KGM"]
[null,null,null,null,null,121805334,"           ح/توت أحمر","حشو تورتة","KGM"]
[null,null,null,null,null,121805335,"           حشو ش بندق","حشو تورتة","KGM"]
[null,null,null,null,null,121806102,"              محلى","فوندام      ","KGM"]
[null,null,null,null,null,210202203,"                طاسة      ","طاسة","EA."]
[null,null,null,null,null,210206201,"        علبة مخرمة","اوعية بلستيك","EA."]
[null,null,null,null,null,220102203,"           كبشةللغرف ","ادوات غرف","EA."]
[null,null,null,null,null,220102204,"           سباتول    ","ادوات غرف","EA."]
[null,null,null,null,null,220102205,"           كبشة كبيرة","ادوات غرف","EA."]
[null,null,null,null,null,220102206,"           مقصوصةكبير","ادوات غرف","EA."]
[null,null,null,null,null,220102211,"           معلقه ايس ","ادوات غرف","EA."]
[null,null,null,null,null,220102213,"           كبشةيد طوي","ادوات غرف","EA."]
[null,null,null,null,null,220102217,"           سباتول    ","ادوات غرف","EA."]
[null,null,null,null,null,220102218,"           اسبامسطرين","ادوات غرف","EA."]
[null,null,null,null,null,220102224,"           ملعقةايس0ك","ادوات غرف","EA."]
[null,null,null,null,null,220102225,"           كبشة للغرف","ادوات غرف","EA."]
[null,null,null,null,null,220102234,"           معيار2 لتر","ادوات غرف","EA."]
[null,null,null,null,null,220102235,"           معيار1 لتر","ادوات غرف","EA."]
[null,null,null,null,null,220102236,"           مقوار تفاح","ادوات غرف","EA."]
[null,null,null,null,null,220102237,"           م/بارزيان ","ادوات غرف","EA."]
[null,null,null,null,null,220102239,"           اسباتول رف","ادوات غرف","EA."]
[null,null,null,null,null,220102241,"           اسباتول1مت","ادوات غرف","EA."]
[null,null,null,null,null,220102242,"           اسباتول4بو","ادوات غرف","EA."]
[null,null,null,null,null,220103212,"               للبيض     ","قطاعه","EA."]
[null,null,null,null,null,220103217,"               كنابية40  ","قطاعه","EA."]
[null,null,null,null,null,220103218,"               عجلة بيتسا","قطاعه","EA."]
[null,null,null,null,null,220103219,"               خرامة عجين","قطاعه","EA."]
[null,null,null,null,null,220104102,"               فرخ سيلكون","فورمه","EA."]
[null,null,null,null,null,220104214,"               عادة      ","فورمه","EA."]
[null,null,null,null,null,220104216,"               ف تورتة 20","فورمه","EA."]
[null,null,null,null,null,220104237,"               بلبلة16/5م","فورمه","EA."]
[null,null,null,null,null,220104238,"               بلبلة8/3 م","فورمه","EA."]
[null,null,null,null,null,220104239,"               بلبلة2/1 م","فورمه","EA."]
[null,null,null,null,null,220104240,"               بلبلة16/9م","فورمه","EA."]
[null,null,null,null,null,220104241,"               بلبلة8/5 م","فورمه","EA."]
[null,null,null,null,null,220104242,"               بلبلة4/1 م","فورمه","EA."]
[null,null,null,null,null,220104243,"               بلبلة16/5س","فورمه","EA."]
[null,null,null,null,null,220104244,"               بلبلة2/1س ","فورمه","EA."]
[null,null,null,null,null,220104245,"               بلبلة8/5س ","فورمه","EA."]
[null,null,null,null,null,220104246,"               بلبلة4/1س ","فورمه","EA."]
[null,null,null,null,null,220104249,"               كيس كريمةم","فورمه","EA."]
[null,null,null,null,null,220104251,"               ق.تورته30س","فورمه","EA."]
[null,null,null,null,null,220104447,"               فورمه كيك ","فورمه","EA."]
[null,null,null,null,null,220104448,"               قالب توست ","فورمه","EA."]
[null,null,null,null,null,220104449,"               فورة24سم  ","فورمه","EA."]
[null,null,null,null,null,220104450,"               فورمة30سم ","فورمه","EA."]
[null,null,null,null,null,220105207,"                سلك استانس","مضرب","EA."]
[null,null,null,null,null,220105208,"                سلك ص  بيض","مضرب","EA."]
[null,null,null,null,null,220105213,"                مضرب سلك1م","مضرب","EA."]
[null,null,null,null,null,220106204,"               للخضارستيل","مبشرة","EA."]
[null,null,null,null,null,220106211,"               مبشرةستنلس","مبشرة","EA."]
[null,null,null,null,null,220106212,"               مقشرةصغيرة","مبشرة","EA."]
[null,null,null,null,null,220106214,"               مفرمه ثوم ","مبشرة","EA."]
[null,null,null,null,null,220106215,"               اده لزاله ","مبشرة","EA."]
[null,null,null,null,null,220106216,"               مقص مطبخ  ","مبشرة","EA."]
[null,null,null,null,null,220107206,"         مستحد للسن","ادوات جزارة","EA."]
[null,null,null,null,null,220107212,"         بلنش بلستك","ادوات جزارة","EA."]
[null,null,null,null,null,220107214,"         مستحد صلب ","ادوات جزارة","EA."]
[null,null,null,null,null,220107215,"         مقاس 50×40","ادوات جزارة","EA."]
[null,null,null,null,null,220107217,"         بلنش أحمر ","ادوات جزارة","EA."]
[null,null,null,null,null,220107218,"         بلنش أزرق ","ادوات جزارة","EA."]
[null,null,null,null,null,220107219,"         بلنش أخضر ","ادوات جزارة","EA."]
[null,null,null,null,null,220107220,"         بلنش أصفر ","ادوات جزارة","EA."]
[null,null,null,null,null,220107221,"         بلنش  بنى ","ادوات جزارة","EA."]
[null,null,null,null,null,220107225,"         لوح تقطيع ","ادوات جزارة","EA."]
[null,null,null,null,null,220108201,"                واحد  بوصه","فرشه","EA."]
[null,null,null,null,null,220108202,"                اثنين بوصه","فرشه","EA."]
[null,null,null,null,null,220108204,"                فرشةسلك م ","فرشه","EA."]
[null,null,null,null,null,220108206,"                فرشةدقيق21","فرشه","EA."]
[null,null,null,null,null,220109213,"               سكينه فيبر","سكينه","EA."]
[null,null,null,null,null,220109216,"               سكينةمطبخ ","سكينه","EA."]
[null,null,null,null,null,220109217,"               سكينةمطبخ ","سكينه","EA."]
[null,null,null,null,null,220109221,"               سكين مشرشر","سكينه","EA."]
[null,null,null,null,null,220109231,"               شرائح     ","سكينه","EA."]
[null,null,null,null,null,220109232,"               شرائح     ","سكينه","EA."]
[null,null,null,null,null,220109249,"               م/مربع    ","سكينه","EA."]
[null,null,null,null,null,220109250,"               س 10/بوصه ","سكينه","EA."]
[null,null,null,null,null,220109251,"               سكينة4بيد ","سكينه","EA."]
[null,null,null,null,null,220109252,"               سكينة6بوصة","سكينه","EA."]
[null,null,null,null,null,220109253,"               سكينةمشرشر","سكينه","EA."]
[null,null,null,null,null,220109256,"               س /س /فيلة","سكينه","EA."]
[null,null,null,null,null,220109257,"               س /تقطيع12","سكينه","EA."]
[null,null,null,null,null,220109265,"               ق/استانليس","سكينه","EA."]
[null,null,null,null,null,220109266,"               ق/استانليس","سكينه","EA."]
[null,null,null,null,null,220109267,"               ق/مست/صغير","سكينه","EA."]
[null,null,null,null,null,220109268,"               فطاعه 15سم","سكينه","EA."]
[null,null,null,null,null,220109269,"               قطاعه 4 سم","سكينه","EA."]
[null,null,null,null,null,220109270,"               قطاعه 8سم ","سكينه","EA."]
[null,null,null,null,null,220109271,"               قطاعه 6 سم","سكينه","EA."]
[null,null,null,null,null,220109273,"               قطاعه3.8مل","سكينه","EA."]
[null,null,null,null,null,220109274,"               قطاعه6.5مل","سكينه","EA."]
[null,null,null,null,null,220109281,"               قطاعه م3سم","سكينه","EA."]
[null,null,null,null,null,220109284,"               قطاعةم 5سم","سكينه","EA."]
[null,null,null,null,null,220109289,"               س مطبخ20سم","سكينه","EA."]
[null,null,null,null,null,220109290,"               س مطبخ25سم","سكينه","EA."]
[null,null,null,null,null,220110122,"    منخل 35سم ","منخل / مصفاة سلك","EA."]
[null,null,null,null,null,220111102,"                 نشابة 20\" ","رول","EA."]
[null,null,null,null,null,220202203,"                للومليت22س","طاسه","EA."]
[null,null,null,null,null,220202204,"                طاسةتيفال ","طاسه","EA."]
[null,null,null,null,null,220202207,"                طاسةتيفال ","طاسه","EA."]
[null,null,null,null,null,220202211,"                طاسه18×3سم","طاسه","EA."]
[null,null,null,null,null,220202214,"                طاسةت32/سم","طاسه","EA."]
[null,null,null,null,null,220202215,"                ط مالومنيو","طاسه","EA."]
[null,null,null,null,null,220202216,"                طاسه صوص  ","طاسه","EA."]
[null,null,null,null,null,220202217,"                طاسه صوص  ","طاسه","EA."]
[null,null,null,null,null,220203206,"               شنوار ك   ","مصفاه","EA."]
[null,null,null,null,null,220203211,"               قمع شنوارك","مصفاه","EA."]
[null,null,null,null,null,220203213,"               سلك قطر20س","مصفاه","EA."]
[null,null,null,null,null,220203217,"               مصفاه","S باول40سم","EA."]
[null,null,null,null,null,220203218,"               باول5ز14 ل","مصفاه","EA."]
[null,null,null,null,null,220203219,"               جاستر200مم","مصفاه","EA."]
[null,null,null,null,null,220203220,"               جاستر100مم","مصفاه","EA."]
[null,null,null,null,null,220203221,"               جاستر50ملى","مصفاه","EA."]
[null,null,null,null,null,220203224,"               مصفاة 22سم","مصفاه","EA."]
[null,null,null,null,null,220203229,"               جاسترو ثلث","مصفاه","EA."]
[null,null,null,null,null,220203232,"               جاسترو20سم","مصفاه","EA."]
[null,null,null,null,null,220203234,"               جاسترو10سم","مصفاه","EA."]
[null,null,null,null,null,220203235,"               جاستر 1سم ","مصفاه","EA."]
[null,null,null,null,null,220203236,"               جاستر 10سم","مصفاه","EA."]
[null,null,null,null,null,220203237,"               جاسترنورم ","مصفاه","EA."]
[null,null,null,null,null,220203238,"               جاسترنورم ","مصفاه","EA."]
[null,null,null,null,null,220203240,"               باول مستدي","مصفاه","EA."]
[null,null,null,null,null,220203241,"               باول مستدي","مصفاه","EA."]
[null,null,null,null,null,220203242,"               حله صوص   ","مصفاه","EA."]
[null,null,null,null,null,220203243,"               حله استليس","مصفاه","EA."]
[null,null,null,null,null,220206203,"         صندوق أصفر","وعاء بلستيك","EA."]
[null,null,null,null,null,220206209,"         ص /بلغارى ","وعاء بلستيك","EA."]
[null,null,null,null,null,220206212,"         صندوق أزرق","وعاء بلستيك","EA."]
[null,null,null,null,null,220302208,"        م0ترقيم   ","ماكينه يدوية","EA."]
[null,null,null,null,null,220302209,"        عبوه حبر ت","ماكينه يدوية","EA."]
[null,null,null,null,null,220302210,"        فتاحةكبيرة","ماكينه يدوية","EA."]
[null,null,null,null,null,220304203,"                 بوصة  ","قفل   2","EA."]
[null,null,null,null,null,220304207,"                 ز2بوصةزط ","قفل5","EA."]
[null,null,null,null,null,220401209," ص/الو/فرنس","صوانى وصاجات معدنية","EA."]
[null,null,null,null,null,220401221," صوانى وصاجات معدنية","SS   صينيه","EA."]
[null,null,null,null,null,220401315," وير (شبك) ","صوانى وصاجات معدنية","EA."]
[null,null,null,null,null,220401316," لوح مثقب م","صوانى وصاجات معدنية","EA."]
[null,null,null,null,null,220401319," لوح خبز   ","صوانى وصاجات معدنية","EA."]
[null,null,null,null,null,220401321," لوح خبزفرن","صوانى وصاجات معدنية","EA."]
[null,null,null,null,null,220401335," ص ستنلس   ","صوانى وصاجات معدنية","EA."]
[null,null,null,null,null,220401338," ص/ب/صغيرة ","صوانى وصاجات معدنية","EA."]
[null,null,null,null,null,220413201,"           حذاءسابو  ","حذاء سابو","EA."]
[null,null,null,null,null,220415016,"               غلية مياه ","معدات","EA."]
[null,null,null,null,null,320101402,"          بيبسى 5ر1","مياه غازيه ","CRT"]
[null,null,null,null,null,320101403,"          ب 0 د 5ر1 ","مياه غازيه","CRT"]
[null,null,null,null,null,320101404,"          ميرندا 5ر1","مياه غازيه","CRT"]
[null,null,null,null,null,320101406,"          كوكا 5ر1  ","مياه غازيه","CRT"]
[null,null,null,null,null,320101407,"          فانتا 5ر1","مياه غازيه ","CRT"]
[null,null,null,null,null,320101408,"          سبرايت 5ر1","مياه غازيه","CRT"]
[null,null,null,null,null,320101409,"          م/غ/كول1ر ","مياه غازيه","CRT"]
[null,null,null,null,null,320101417,"          سفن اب    ","مياه غازيه","CRT"]
[null,null,null,null,null,320101418,"          سفن اب0د  ","مياه غازيه","CRT"]
[null,null,null,null,null,320101420,"          اسبريت1لتر","مياه غازيه","BOT"]
[null,null,null,null,null,320101421,"          كول2لتر   ","مياه غازيه","BOT"]
[null,null,null,null,null,320101423,"          ليمون 2لتر","مياه غازيه","BOT"]
[null,null,null,null,null,320101428,"          بيبسى1لتر ","مياه غازيه","BOT"]
[null,null,null,null,null,320101429,"          بيبسىليت1ل","مياه غازيه","BOT"]
[null,null,null,null,null,320101430,"          سفن اب 1لت","مياه غازيه","BOT"]
[null,null,null,null,null,320101431,"          سفن ليت1لت","مياه غازيه","BOT"]
[null,null,null,null,null,320101432,"          ميرند 1لتر","مياه غازيه","BOT"]
[null,null,null,null,null,320102310,"    سفن اب 330","مياه غازيه كبيره","TIN"]
[null,null,null,null,null,320102314,"    ميراندا330","مياه غازيه كبيره","CRT"]
[null,null,null,null,null,320102323,"    صودا330مل ","مياه غازيه كبيره","CRT"]
[null,null,null,null,null,320102324,"    تونيك330مل","مياه غازيه كبيره","CRT"]
[null,null,null,null,null,320102326,"    كوكاكول/م ","مياه غازيه كبيره","CRT"]
[null,null,null,null,null,320102327,"    فانتابرتقا","مياه غازيه كبيره","CRT"]
[null,null,null,null,null,320102328,"    اسبرايت   ","مياه غازيه كبيره","CRT"]
[null,null,null,null,null,320102332,"    كولليت330م","مياه غازيه كبيره","TIN"]
[null,null,null,null,null,320102333,"    بيبسى330مل","مياه غازيه كبيره","CRT"]
[null,null,null,null,null,320102334,"    بيبسىدايت0","مياه غازيه كبيره","CRT"]
[null,null,null,null,null,320102335,"    سفن دايت30","مياه غازيه كبيره","CRT"]
[null,null,null,null,null,320102340,"    ل/دايت330م","مياه غازيه كبيره","CRT"]
[null,null,null,null,null,320102376,"    برتقال250م","مياه غازيه كبيره","TIN"]
[null,null,null,null,null,320102378,"    ليمون250مل","مياه غازيه كبيره","TIN"]
[null,null,null,null,null,320102380,"    تونك250ملى","مياه غازيه كبيره","TIN"]
[null,null,null,null,null,320102381,"    صودا250وتر","مياه غازيه كبيره","TIN"]
[null,null,null,null,null,320102385,"    كول250مللى","مياه غازيه كبيره","TIN"]
[null,null,null,null,null,320102386,"    كولزي250مل","مياه غازيه كبيره","TIN"]
[null,null,null,null,null,320102388,"    كولليت355م","مياه غازيه كبيره","TIN"]
[null,null,null,null,null,320102389,"    ليمون355مل","مياه غازيه كبيره","TIN"]
[null,null,null,null,null,320102390,"    كول355مللى","مياه غازيه كبيره","TIN"]
[null,null,null,null,null,320102392,"    ليمون355دا","مياه غازيه كبيره","TIN"]
[null,null,null,null,null,320102398,"    ك/بلستك300","مياه غازيه كبيره","BOT"]
[null,null,null,null,null,320102400,"    لمون300بلا","مياه غازيه كبيره","BOT"]
[null,null,null,null,null,320102402,"    برتقال300ب","مياه غازيه كبيره","BOT"]
[null,null,null,null,null,320104302,"علبة بدون ","مشروب شعير بدون كحول","TIN"]
[null,null,null,null,null,320104303,"علبة بكحول","مشروب شعير بدون كحول","CRT"]
[null,null,null,null,null,320104305,"تفاح330ملى","مشروب شعير بدون كحول","TIN"]
[null,null,null,null,null,320104306,"اناناس 330","مشروب شعير بدون كحول","TIN"]
[null,null,null,null,null,320104309,"بيرةهانكين","مشروب شعير بدون كحول","TIN"]
[null,null,null,null,null,320104312,"بيرة ماكس ","مشروب شعير بدون كحول","TIN"]
[null,null,null,null,null,320104314,"خوخ330ملى ","مشروب شعير بدون كحول","TIN"]
[null,null,null,null,null,320105001,"1م/غازيةكول","مشروبات غازية حوالى","BOT"]
[null,null,null,null,null,320105003,"1م/ليمون1لت","مشروبات غازية حوالى","BOT"]
[null,null,null,null,null,320105005,"1م/برتقال1 ","مشروبات غازية حوالى","BOT"]
[null,null,null,null,null,320105006,"1كولا970مم ","مشروبات غازية حوالى","BOT"]
[null,null,null,null,null,320105007,"1كولليت970م","مشروبات غازية حوالى","BOT"]
[null,null,null,null,null,320105008,"1ليمون970مم","مشروبات غازية حوالى","BOT"]
[null,null,null,null,null,320105009,"1ل/ليت970مم","مشروبات غازية حوالى","BOT"]
[null,null,null,null,null,320105010,"1برتقال970م","مشروبات غازية حوالى","BOT"]
[null,null,null,null,null,320107001,"    كولا300ملل","مياه غازيةزجاجات","BOT"]
[null,null,null,null,null,320107003,"    ليمون300مل","مياه غازيةزجاجات","BOT"]
[null,null,null,null,null,320107004,"    برتقال300م","مياه غازيةزجاجات","BOT"]
[null,null,null,null,null,320201303,"                 باكو  9جم ","شاى","THN"]
[null,null,null,null,null,320201602,"                 شاىحوالى2ج","شاى","BOX"]
[null,null,null,null,null,320201606,"                 ليبتون2جم","شاى ","BOX"]
[null,null,null,null,null,320201607,"                 جم كفتريا","شاى2","BOX"]
[null,null,null,null,null,320201608,"                 اخضرنعناع2","شاى","PKT"]
[null,null,null,null,null,320201623,"                 اخضر5ر1نعن","شاى","TIN"]
[null,null,null,null,null,320201632,"                 أخ/نع5ر1ظر","شاى","TIN"]
[null,null,null,null,null,320201633,"                 أحمر2جم ظر","شاى","PKT"]
[null,null,null,null,null,320202609,"                  نستله كلسك","بن","JAR"]
[null,null,null,null,null,320202614,"                  بن اسبرتو ","بن","EA."]
[null,null,null,null,null,320202615,"                  بن لفازا  ","بن","KGM"]
[null,null,null,null,null,320202617,"                  بن دون كاف","بن","JAR"]
[null,null,null,null,null,320202637,"                  ن/جولد50جم","بن","JAR"]
[null,null,null,null,null,320203601,"        مكعبات10جم","زبدة بالقطعة","THN"]
[null,null,null,null,null,320203603,"        بلستك10جم ","زبدة بالقطعة","THN"]
[null,null,null,null,null,320203604,"        زبدةمرجرين","زبدة بالقطعة","THN"]
[null,null,null,null,null,320203605,"        رويال باك ","زبدة بالقطعة","EA."]
[null,null,null,null,null,320204601," باكو10ج","         سلطةدريسنج   ","THN"]
[null,null,null,null,null,320204611," فرنش 8/236","         سلطةدريسنج","BOT"]
[null,null,null,null,null,320204612," بلوتشيز236","         سلطةدريسنج","BOT"]
[null,null,null,null,null,320204619," ديمى جلس  ","         سلطةدريسنج","CRT"]
[null,null,null,null,null,320204621," باربكيو   ","         سلطةدريسنج","JRK"]
[null,null,null,null,null,320204636," ديمىجلس750","         سلطةدريسنج","TIN"]
[null,null,null,null,null,320204637," درسينج بدو","         سلطةدريسنج","THN"]
[null,null,null,null,null,320205604,"     باكوملح1جم","عبوات ملح /فلفل","THN"]
[null,null,null,null,null,320205605,"     ب فلفل5رجم","عبوات ملح /فلفل","THN"]
[null,null,null,null,null,320205607,"     ملح1جم مم ","عبوات ملح /فلفل","THN"]
[null,null,null,null,null,320205608,"     فلفل5رجم م","عبوات ملح /فلفل","THN"]
[null,null,null,null,null,320206603,"        كريمر م/م ","لبن جاف باكو","THN"]
[null,null,null,null,null,320206605,"        كريمرش م/م","لبن جاف باكو","THN"]
[null,null,null,null,null,320206606,"        كريمه10جم ","لبن جاف باكو","PKT"]
[null,null,null,null,null,320206607,"        جاف2جم بدو","لبن جاف باكو","THN"]
[null,null,null,null,null,320207601,"            باكو  7جم ","سكر ناعم","THN"]
[null,null,null,null,null,320207603,"            سكرمنخفض  ","سكر ناعم","THN"]
[null,null,null,null,null,320207605,"            بدون شعار ","سكر ناعم","THN"]
[null,null,null,null,null,320207606,"            سكر7جم مم ","سكر ناعم","THN"]
[null,null,null,null,null,320207617,"            سكرمغلف بد","سكر ناعم","THN"]
[null,null,null,null,null,320207623,"            سكر5ج شعار","سكر ناعم","THN"]
[null,null,null,null,null,320208602,"                بدون شعار ","مربى","THN"]
[null,null,null,null,null,320208615,"                جم زجاج ","مربى30","EA."]
[null,null,null,null,null,320208617,"                مربى اصناف","مربى","EA."]
[null,null,null,null,null,320208624,"                م/ب/ف20جم ","مربى","EA."]
[null,null,null,null,null,320209603,"             عسل ن0بدون","عسل نحل","EA."]
[null,null,null,null,null,320209606,"             ع ح30جم بد","عسل نحل","EA."]
[null,null,null,null,null,320209607,"             عسل نحل35ج","عسل نحل","EA."]
[null,null,null,null,null,320209612,"             ع/نح/ب20/ج","عسل نحل","EA."]
[null,null,null,null,null,320304301," برتقال    ","عصير علب كرتون 1لتر","CRT"]
[null,null,null,null,null,320304302," تفاح      ","عصير علب كرتون 1لتر","CRT"]
[null,null,null,null,null,320304303," مانجو     ","عصير علب كرتون 1لتر","CRT"]
[null,null,null,null,null,320304304," اناناس    ","عصير علب كرتون 1لتر","CRT"]
[null,null,null,null,null,320304305," جوافة1لتر ","عصير علب كرتون 1لتر","CRT"]
[null,null,null,null,null,320304306," تفاح/غ/م  ","عصير علب كرتون 1لتر","CRT"]
[null,null,null,null,null,320304307," برتقال/غ/م","عصير علب كرتون 1لتر","CRT"]
[null,null,null,null,null,320304308," عصير/ط/لتر","عصير علب كرتون 1لتر","CRT"]
[null,null,null,null,null,320304309," كوكتيل1لتر","عصير علب كرتون 1لتر","CRT"]
[null,null,null,null,null,320304313," عصيرقمردين","عصير علب كرتون 1لتر","LTR"]
[null,null,null,null,null,320304316," ع خروب 1  ","عصير علب كرتون 1لتر","LTR"]
[null,null,null,null,null,320304317," اناناس غ م","عصير علب كرتون 1لتر","LTR"]
[null,null,null,null,null,320304322," ع/طمطم غير","عصير علب كرتون 1لتر","CRT"]
[null,null,null,null,null,320305301,"          برتقال200م","عصير انواع","CRT"]
[null,null,null,null,null,320305302,"          جوافه200مل","عصير انواع","CRT"]
[null,null,null,null,null,320305303,"          تفاح200مل ","عصير انواع","CRT"]
[null,null,null,null,null,320305305,"          عصيركوكتيل","عصير انواع","CRT"]
[null,null,null,null,null,320305306,"          عصيرمانجو ","عصير انواع","CRT"]
[null,null,null,null,null,320305307,"          برتقال200غ","عصير انواع","CRT"]
[null,null,null,null,null,320305399,"          ليمون1000م","عصير انواع","BOT"]
[null,null,null,null,null,320305427,"          تفاح/م235م","عصير انواع","TIN"]
[null,null,null,null,null,320305428,"          ع/جوافة235","عصير انواع","TIN"]
[null,null,null,null,null,320305429,"          ع/مانجو235","عصير انواع","TIN"]
[null,null,null,null,null,320305430,"          ع/برتقل235","عصير انواع","TIN"]
[null,null,null,null,null,320305431,"          أناناس235م","عصير انواع","TIN"]
[null,null,null,null,null,320401502,"         عبوه1,5لتر","مياه معدنية","BOX"]
[null,null,null,null,null,320401505,"         بيرييه330م","مياه معدنية","CRT"]
[null,null,null,null,null,320401509,"         مياه600ملى","مياه معدنية","CRT"]
[null,null,null,null,null,320401525,"         مباه650ملى","مياه معدنية","BOT"]
[null,null,null,null,null,320401526,"         م فواره240","مياه معدنية","BOT"]
[null,null,null,null,null,410104107,"                باينوسكت  ","مبيد","EA."]
[null,null,null,null,null,410104116,"                ايروسول 60","مبيد","EA."]
[null,null,null,null,null,410104121,"                سيبركيل   ","مبيد","EA."]
[null,null,null,null,null,410104124,"                باينوسكت  ","مبيد","EA."]
[null,null,null,null,null,410104125,"                ديازينون  ","مبيد","LTR"]
[null,null,null,null,null,410104128,"                ايروسول60 ","مبيد","EA."]
[null,null,null,null,null,410301114,"        قرص معطر  ","ادوات تواليت","EA."]
[null,null,null,null,null,410301117,"        ادوات تواليت","AEROSOL400","EA."]
[null,null,null,null,null,410301118,"        ادوات تواليت"," KILLER250","EA."]
[null,null,null,null,null,410401104,"            لبنى كبير ","مفرش ورق","THN"]
[null,null,null,null,null,410401115,"            مفرش أطلس ","مفرش ورق","THN"]
[null,null,null,null,null,410402103,"         كيس دوار  ","عبوات ورقية","THN"]
[null,null,null,null,null,420102100,"       لمبادة10% ","منظف/مطهرمطبخ","LTR"]
[null,null,null,null,null,420102101,"       مادةتلميع","منظف/مطهرمطبخ ","EA."]
[null,null,null,null,null,420102113,"       صابون سائل","منظف/مطهرمطبخ","KGM"]
[null,null,null,null,null,420102122,"       مطهرارضيات","منظف/مطهرمطبخ","LTR"]
[null,null,null,null,null,420102123,"       منظف افران","منظف/مطهرمطبخ","KGM"]
[null,null,null,null,null,420102126,"       صابون ايدى","منظف/مطهرمطبخ","LTR"]
[null,null,null,null,null,420102127,"       صابون200مل","منظف/مطهرمطبخ","EA."]
[null,null,null,null,null,420102131,"       كلوركس    ","منظف/مطهرمطبخ","BOT"]
[null,null,null,null,null,420102134,"       مبيد300ملى","منظف/مطهرمطبخ","TIN"]
[null,null,null,null,null,420102138,"       صابون200يد","منظف/مطهرمطبخ","EA."]
[null,null,null,null,null,420102141,"       م/نقع/استا","منظف/مطهرمطبخ","KGM"]
[null,null,null,null,null,420102142,"       مسلك بلعات","منظف/مطهرمطبخ","KGM"]
[null,null,null,null,null,420102143,"       صابون175مل","منظف/مطهرمطبخ","EA."]
[null,null,null,null,null,420102148,"       توب زد57% ","منظف/مطهرمطبخ","LTR"]
[null,null,null,null,null,420102149,"       ملثيون ت5%","منظف/مطهرمطبخ","KGM"]
[null,null,null,null,null,420102150,"       كيل رش عجي","منظف/مطهرمطبخ","KGM"]
[null,null,null,null,null,420102151,"       رات سوبر ك","منظف/مطهرمطبخ","KGM"]
[null,null,null,null,null,420102154,"       بوريك عجين","منظف/مطهرمطبخ","EA."]
[null,null,null,null,null,420102155,"       ص/سائل بدو","منظف/مطهرمطبخ","KGM"]
[null,null,null,null,null,420102162,"       م/دهون وشح","منظف/مطهرمطبخ","LTR"]
[null,null,null,null,null,420102164,"       ص/أيد125يد","منظف/مطهرمطبخ","EA."]
[null,null,null,null,null,420102167,"       ص/سائل بدو","منظف/مطهرمطبخ","LTR"]
[null,null,null,null,null,420102170,"       ديتول125مل","منظف/مطهرمطبخ","BOT"]
[null,null,null,null,null,420103127,"مزيل بقع ش","منظفات :مغسلة/وغليات","KGM"]
[null,null,null,null,null,420103135,"ليفرلين   ","منظفات :مغسلة/وغليات","EA."]
[null,null,null,null,null,420103136,"ساتينو رول","منظفات :مغسلة/وغليات","EA."]
[null,null,null,null,null,420103138,"سوماسول   ","منظفات :مغسلة/وغليات","KGM"]
[null,null,null,null,null,420103142,"اقراص مطهر","منظفات :مغسلة/وغليات","TIN"]
[null,null,null,null,null,420103144,"ص /كومبكت ","منظفات :مغسلة/وغليات","JAR"]
[null,null,null,null,null,420103145,"م/أملح بود","منظفات :مغسلة/وغليات","KGM"]
[null,null,null,null,null,420103147,"رينزول    ","منظفات :مغسلة/وغليات","LTR"]
[null,null,null,null,null,420103148,"سوماسبشيال","منظفات :مغسلة/وغليات","JRK"]
[null,null,null,null,null,420103149,"تاسكى سان ","منظفات :مغسلة/وغليات","JRK"]
[null,null,null,null,null,420103152,"سوما سكال5","منظفات :مغسلة/وغليات","JRK"]
[null,null,null,null,null,420103159,"مظيل دهون ","منظفات :مغسلة/وغليات","LTR"]
[null,null,null,null,null,420103160,"منعم ومعطر","منظفات :مغسلة/وغليات","LTR"]
[null,null,null,null,null,420103161,"صابون اساس","منظفات :مغسلة/وغليات","LTR"]
[null,null,null,null,null,420103162,"كلور الوان","منظفات :مغسلة/وغليات","LTR"]
[null,null,null,null,null,420103163,"كلور ابيض ","منظفات :مغسلة/وغليات","LTR"]
[null,null,null,null,null,420103164,"قاطع صابون","منظفات :مغسلة/وغليات","LTR"]
[null,null,null,null,null,420103165,"مفتت بقع  ","منظفات :مغسلة/وغليات","LTR"]
[null,null,null,null,null,420103169,"مزيل املح ","منظفات :مغسلة/وغليات","LTR"]
[null,null,null,null,null,420103174,"مطهر أسطح ","منظفات :مغسلة/وغليات","LTR"]
[null,null,null,null,null,420103178,"ورق رول لل","منظفات :مغسلة/وغليات","ROL"]
[null,null,null,null,null,420103189,"خضاروفاكهه","منظفات :مغسلة/وغليات","EA."]
[null,null,null,null,null,420103193,"غسيل زجاج ","منظفات :مغسلة/وغليات","LTR"]
[null,null,null,null,null,420103194,"مسحوق اتوم","منظفات :مغسلة/وغليات","KGM"]
[null,null,null,null,null,420201103," بكر1500×30","مهمات بلستيك للمطبخ","ROL"]
[null,null,null,null,null,420201104," جوانتى    ","مهمات بلستيك للمطبخ","THN"]
[null,null,null,null,null,420201106," ز/بلستك1لت","مهمات بلستيك للمطبخ","BOT"]
[null,null,null,null,null,420201112," بكرتغليف45","مهمات بلستيك للمطبخ","ROL"]
[null,null,null,null,null,420201114," جوانتىفنيل","مهمات بلستيك للمطبخ","EA."]
[null,null,null,null,null,420202201,"          للفضيه    ","كيس بلستيك","THN"]
[null,null,null,null,null,420202203,"          للثلج     ","كيس بلستيك","KGM"]
[null,null,null,null,null,420202204,"          بطاطين مخر","كيس بلستيك","KGM"]
[null,null,null,null,null,420202207,"          ابيض زبالة","كيس بلستيك","THN"]
[null,null,null,null,null,420202208,"          كيس قمامه ","كيس بلستيك","EA."]
[null,null,null,null,null,420202212,"          جافةش","كيس بلستيك28×20","KGM"]
[null,null,null,null,null,420202219,"          كيس اسود  ","كيس بلستيك","EA."]
[null,null,null,null,null,420202222,"          كيس قمامةص","كيس بلستيك","KGM"]
[null,null,null,null,null,420202224,"          كيس اسود ك","كيس بلستيك","KGM"]
[null,null,null,null,null,420203101,"      شماعةبلستك","متنوعات بلستيك","DOZ"]
[null,null,null,null,null,420203103,"      ع/ث/ج/فوم ","متنوعات بلستيك","EA."]
[null,null,null,null,null,420301108,"          صابون مغلف","موادتواليت","EA."]
[null,null,null,null,null,420301109,"          فوط صحية  ","موادتواليت","EA."]
[null,null,null,null,null,420301111,"          كولونيا   ","موادتواليت","BOT"]
[null,null,null,null,null,420301113,"          صابون غيرم","موادتواليت","EA."]
[null,null,null,null,null,420301114,"          فوط صحيةبش","موادتواليت","EA."]
[null,null,null,null,null,420301122,"          كولونيا اس","موادتواليت","BOT"]
[null,null,null,null,null,420301123,"          كلونياف اك","موادتواليت","BOT"]
[null,null,null,null,null,420301142,"          ديتول125مل","موادتواليت","BOT"]
[null,null,null,null,null,420301143,"          معطرم320مل","موادتواليت","BOT"]
[null,null,null,null,null,420301144,"          معطرم460مل","موادتواليت","BOT"]
[null,null,null,null,null,420401101,"         فضى ابيض ك","فوط و مفارش","THN"]
[null,null,null,null,null,420401102,"         زهبى","فوط و مفارشXرمادى","EA."]
[null,null,null,null,null,420401108,"         ورق تواليت","فوط و مفارش","ROL"]
[null,null,null,null,null,420401110,"         دانتيل26مط","فوط و مفارش","EA."]
[null,null,null,null,null,420401113,"         فوط 2 طبقة","فوط و مفارش","PKT"]
[null,null,null,null,null,420401115,"         كاشيه    7","فوط و مفارش","THN"]
[null,null,null,null,null,420401116,"         دانتيل  35","فوط و مفارش","EA."]
[null,null,null,null,null,420401121,"         فوط  تنشيف","فوط و مفارش","PKT"]
[null,null,null,null,null,420401122,"         فضى متوسط ","فوط و مفارش","THN"]
[null,null,null,null,null,420401125,"         مفرش كاس6ط","فوط و مفارش","THN"]
[null,null,null,null,null,420401129,"         ف0و أبيض 3","فوط و مفارش","PKT"]
[null,null,null,null,null,420401130,"         ف0وسناكس 3","فوط و مفارش","PKT"]
[null,null,null,null,null,420401131,"         مفرش 35×22","فوط و مفارش","THN"]
[null,null,null,null,null,420401133,"         مفرش 26سم ","فوط و مفارش","THN"]
[null,null,null,null,null,420401134,"         مناشف مطبخ","فوط و مفارش","ROL"]
[null,null,null,null,null,420401135,"         طبقة80فوط","فوط و مفارش2","BOX"]
[null,null,null,null,null,420401136,"         مناديل سفر","فوط و مفارش","PKT"]
[null,null,null,null,null,420401137,"         طبقه     ","فوط و مفارش2","BOX"]
[null,null,null,null,null,420401138,"         م/مفضض وسط","فوط و مفارش","EA."]
[null,null,null,null,null,420401139,"         م/مفضض كبي","فوط و مفارش","EA."]
[null,null,null,null,null,420401140,"         مناديل2اسم","فوط و مفارش","PKT"]
[null,null,null,null,null,420401143,"         م/صغيراكسب","فوط و مفارش","EA."]
[null,null,null,null,null,420401144,"         م/وسط اكسب","فوط و مفارش","EA."]
[null,null,null,null,null,420401146,"         رول تواليت","فوط و مفارش","ROL"]
[null,null,null,null,null,420401150,"         منديل سناك","فوط و مفارش","PKT"]
[null,null,null,null,null,420401152,"         كوستر6بدون","فوط و مفارش","EA."]
[null,null,null,null,null,420401154,"         م/وسط/لبنى","فوط و مفارش","EA."]
[null,null,null,null,null,420402102,"         كيس دوار","عبوات ورقية  ","THN"]
[null,null,null,null,null,420402109,"         حافظةورق  ","عبوات ورقية","EA."]
[null,null,null,null,null,420402111,"         غ مجلةلستك","عبوات ورقية","EA."]
[null,null,null,null,null,420402112,"         كيس دوار  ","عبوات ورقية","EA."]
[null,null,null,null,null,420402113,"         دواراكسبري","عبوات ورقية","EA."]
[null,null,null,null,null,420402115,"         ك دوار بلو","عبوات ورقية","EA."]
[null,null,null,null,null,420403103,"              ق.تواليت  ","ورقيات","PKT"]
[null,null,null,null,null,420403104,"              طاقيةطباخ ","ورقيات","EA."]
[null,null,null,null,null,420403106,"              غ.ق.ت الف ","ورقيات","PKT"]
[null,null,null,null,null,420403108,"              مسند كراسى","ورقيات","EA."]
[null,null,null,null,null,420403109,"              غطاء رأس  ","ورقيات","EA."]
[null,null,null,null,null,420403110,"              ابيض اكسبر","ورقيات","EA."]
[null,null,null,null,null,420403111,"              مسند ك بدو","ورقيات","EA."]
[null,null,null,null,null,420403112,"              غطاء ق بدو","ورقيات","PKT"]
[null,null,null,null,null,420403116,"              غ/م/مؤتمر ","ورقيات","EA."]
[null,null,null,null,null,420404111,"               علبةدوبلكس","كرتون","EA."]
[null,null,null,null,null,420404114,"               ق/ت/مفضض  ","كرتون","KGM"]
[null,null,null,null,null,420404115,"               علبة25×8سم","كرتون","EA."]
[null,null,null,null,null,420404116,"               قاعدةم16/س","كرتون","KGM"]
[null,null,null,null,null,420404122,"               قاعدة 26سم","كرتون","KGM"]
[null,null,null,null,null,420404408,"               كرتون","   6*25*25","EA."]
[null,null,null,null,null,420405101,"             ورق زبدة00","ورق خام","EA."]
[null,null,null,null,null,420405102,"             ورق سيلوفا","ورق خام","EA."]
[null,null,null,null,null,420502101,"        لفافة     ","لوازم الطفال","EA."]
[null,null,null,null,null,420601106,"             مخدة38×27س","مفروشات","EA."]
[null,null,null,null,null,420601213,"             بطانيه صوف","مفروشات","EA."]
[null,null,null,null,null,420602119,"         ملايةسريرب","فوط و مفارش","EA."]
[null,null,null,null,null,420602182,"         فوطةبونج/م","فوط و مفارش","THN"]
[null,null,null,null,null,420602189,"         م45×65اكسب","فوط و مفارش","EA."]
[null,null,null,null,null,420605105," ورق لماكينه الصرافه","Kبكر مقاس ","EA."]
[null,null,null,null,null,420701101,"         مساحه بيد ","ادوات نظافه","EA."]
[null,null,null,null,null,420701105,"         زبالةبلستك","ادوات نظافه","EA."]
[null,null,null,null,null,420701110,"         ليف ألوان ","ادوات نظافه","EA."]
[null,null,null,null,null,420701114,"         فرشة أظافر","ادوات نظافه","EA."]
[null,null,null,null,null,420701117,"         مقشةبلستيك","ادوات نظافه","EA."]
[null,null,null,null,null,420701119,"         جاروف بيدك","ادوات نظافه","EA."]
[null,null,null,null,null,420701120,"         فوط مسح وب","ادوات نظافه","EA."]
[null,null,null,null,null,420701121,"         فرشةبيد   ","ادوات نظافه","EA."]
[null,null,null,null,null,420701126,"         زبالةف/قدم","ادوات نظافه","EA."]
[null,null,null,null,null,420701128,"         جردل 15لتر","ادوات نظافه","EA."]
[null,null,null,null,null,420701129,"         بخاخةبلستك","ادوات نظافه","EA."]
[null,null,null,null,null,420701131,"         فرشةتواليت","ادوات نظافه","EA."]
[null,null,null,null,null,420701132,"         هارداسبونج","ادوات نظافه","EA."]
[null,null,null,null,null,420701133,"         منظف زجاج ","ادوات نظافه","EA."]
[null,null,null,null,null,420701134,"         سكويزربدون","ادوات نظافه","EA."]
[null,null,null,null,null,420701135,"         جاروف بدون","ادوات نظافه","EA."]
[null,null,null,null,null,420701142,"         ملمع زجاج1","ادوات نظافه","BOT"]
[null,null,null,null,null,420701143,"         مقش بدن يد","ادوات نظافه","EA."]
[null,null,null,null,null,420900105,"    احباروورق طابعات","LAXMARشريط","EA."]
[null,null,null,null,null,420900106,"    احباروورق طابعات","49A1320حبر","EA."]
[null,null,null,null,null,420900201,"    أصل + صوره","احباروورق طابعات","CRT"]
[null,null,null,null,null,420900202,"    أصل+ 2صوره","احباروورق طابعات","CRT"]
[null,null,null,null,null,420901103,"             لفة ورقلصق","متنوعات","ROL"]
[null,null,null,null,null,420903101,"  كذلك برقبة","مستلزمات أمن صناعى","EA."]
[null,null,null,null,null,420903103,"  حذاء جلد  ","مستلزمات أمن صناعى","EA."]
[null,null,null,null,null,420903105,"  بالطو مطر ","مستلزمات أمن صناعى","EA."]
[null,null,null,null,null,420903106,"  جوانتى جلد","مستلزمات أمن صناعى","EA."]
[null,null,null,null,null,420903107,"  جوانتىحرار","مستلزمات أمن صناعى","EA."]
[null,null,null,null,null,420903108,"  ج تحميل   ","مستلزمات أمن صناعى","EA."]
[null,null,null,null,null,420903109,"  ج / أحماض ","مستلزمات أمن صناعى","EA."]
[null,null,null,null,null,420903111,"  مريلة فيبر","مستلزمات أمن صناعى","EA."]
[null,null,null,null,null,420903112,"  جونتىكاوتش","مستلزمات أمن صناعى","EA."]
[null,null,null,null,null,420903114,"  جاكت فسفور","مستلزمات أمن صناعى","EA."]
[null,null,null,null,null,420903117,"  خوذةبلستيك","مستلزمات أمن صناعى","EA."]
[null,null,null,null,null,420903118,"  كمامةغازات","مستلزمات أمن صناعى","EA."]
[null,null,null,null,null,420903120,"  كمامةأتربة","مستلزمات أمن صناعى","EA."]
[null,null,null,null,null,420903122,"  كالسون فان","مستلزمات أمن صناعى","EA."]
[null,null,null,null,null,420903123,"  حذا جلد طب","مستلزمات أمن صناعى","EA."]
[null,null,null,null,null,420903125,"  حذاءجلدخفي","مستلزمات أمن صناعى","EA."]
[null,null,null,null,null,420903126,"  كوتشى     ","مستلزمات أمن صناعى","EA."]
[null,null,null,null,null,420903128,"  بلطه اقتحا","مستلزمات أمن صناعى","EA."]
[null,null,null,null,null,420903129,"  جهاز تنفس ","مستلزمات أمن صناعى","EA."]
[null,null,null,null,null,420903130,"  كشاف اضاءه","مستلزمات أمن صناعى","EA."]
[null,null,null,null,null,420903131,"  طفايه6ك ثا","مستلزمات أمن صناعى","EA."]
[null,null,null,null,null,420903133,"  جونتى محبب","مستلزمات أمن صناعى","EA."]
[null,null,null,null,null,420903134,"  سدادة أذن ","مستلزمات أمن صناعى","EA."]
[null,null,null,null,null,420903135,"  بالطو ثلجه","مستلزمات أمن صناعى","EA."]
[null,null,null,null,null,420903136,"  فلتر كامل ","مستلزمات أمن صناعى","EA."]
[null,null,null,null,null,420903138,"  جاكت كحلى ","مستلزمات أمن صناعى","EA."]
[null,null,null,null,null,420903139,"  كمامةورقية","مستلزمات أمن صناعى","EA."]
[null,null,null,null,null,420903140,"  سابوةأسود ","مستلزمات أمن صناعى","EA."]
[null,null,null,null,null,420904101,"بدله طباخ ","القابضه لمصر للطيران","EA."]
[null,null,null,null,null,420904102,"بدله تموين","القابضه لمصر للطيران","EA."]
[null,null,null,null,null,420904109,"بنطلون جبر","القابضه لمصر للطيران","EA."]
[null,null,null,null,null,420904110,"جاكت/طباخ ","القابضه لمصر للطيران","EA."]
[null,null,null,null,null,420904111,"بنطلون طبا","القابضه لمصر للطيران","EA."]
[null,null,null,null,null,420904114,"افرول خ كح","القابضه لمصر للطيران","EA."]
[null,null,null,null,null,420904141,"سويت شيرت ","القابضه لمصر للطيران","EA."]
[null,null,null,null,null,420904142,"بولوشيرت  ","القابضه لمصر للطيران","EA."]
[null,null,null,null,null,420905001,"             أزن صرف   ","المخازن","EA."]
[null,null,null,null,null,420905003,"             أ/صرف يدوى","المخازن","EA."]
[null,null,null,null,null,420907001,"             ق/استلم   ","التموين","EA."]
[null,null,null,null,null,420907006,"             فاتورة    ","التموين","EA."]
[null,null,null,null,null,420907015,"             كارت ترولى","التموين","EA."]
[null,null,null,null,null,420909002,"     دفتر احوال","الموارد البشرية","EA."]
[null,null,null,null,null,420911001,"           المشتريات"," GRأزن فحص","EA."]
[null,null,null,null,null,420913005,"       ورق تصوير ","الدعايةوالعلم","EA."]
[null,null,null,null,null,420913009,"       الدعايةوالعلم","    E4 ظرف","EA."]
[null,null,null,null,null,510106102,"               لباردا.باص","ترموس","EA."]
[null,null,null,null,null,510510102,"         ابريق ازرق","اوعية بلستك","EA."]
[null,null,null,null,null,510510103,"         غطاء ابريق","اوعية بلستك","EA."]
[null,null,null,null,null,520103103,"        الومنيوم  ","رف فرن معدنى","EA."]
[null,null,null,null,null,520103104,"        قلب  قرن ص","رف فرن معدنى","EA."]
[null,null,null,null,null,520202119,"     طبق فاكهه ","عدة صينى ايرباص","EA."]
[null,null,null,null,null,520202124,"     ف/ش /مزخرف","عدة صينى ايرباص","EA."]
[null,null,null,null,null,520202125,"     ط/ف/مزخرف ","عدة صينى ايرباص","EA."]
[null,null,null,null,null,520202127,"     ط/عميق مزخ","عدة صينى ايرباص","EA."]
[null,null,null,null,null,520202128,"     ط/باردمزخر","عدة صينى ايرباص","EA."]
[null,null,null,null,null,520202130,"     ط/حلومزخرف","عدة صينى ايرباص","EA."]
[null,null,null,null,null,520202132,"     ط/غرف مزخر","عدة صينى ايرباص","EA."]
[null,null,null,null,null,520202133,"     ب/مدورمزخر","عدة صينى ايرباص","EA."]
[null,null,null,null,null,520202144,"     ف0قهوةبشعا","عدة صينى ايرباص","EA."]
[null,null,null,null,null,520301101,"      مل.شوربة  ","ف0ص0اولى بشعار","EA."]
[null,null,null,null,null,520301118,"      ف0ص0اولى بشعار","F ش  أساسى","EA."]
[null,null,null,null,null,520301119,"      ف0ص0اولى بشعار"," Fس  أساسى","EA."]
[null,null,null,null,null,520302102," شوكة      ","فضيةصلب سياحى بشعار","EA."]
[null,null,null,null,null,520302103," ملعقة شاى ","فضيةصلب سياحى بشعار","EA."]
[null,null,null,null,null,520402103,"   طبق متوسط ","طبق وغطاءالمونيوم","THN"]
[null,null,null,null,null,520402106,"   ط/مقسم3عين","طبق وغطاءالمونيوم","EA."]
[null,null,null,null,null,520402107,"   غ0مستطيل  ","طبق وغطاءالمونيوم","EA."]
[null,null,null,null,null,520402108,"   فورمةحلوان","طبق وغطاءالمونيوم","THN"]
[null,null,null,null,null,520402109,"   ط/سياحىساخ","طبق وغطاءالمونيوم","EA."]
[null,null,null,null,null,520402110,"   غ/ذهبى/شعا","طبق وغطاءالمونيوم","THN"]
[null,null,null,null,null,520402111,"   غ/فضى/شعار","طبق وغطاءالمونيوم","THN"]
[null,null,null,null,null,520402112,"   ط/مقسم2عين","طبق وغطاءالمونيوم","THN"]
[null,null,null,null,null,520402114,"   ط/ألمونيوم","طبق وغطاءالمونيوم","THN"]
[null,null,null,null,null,520402115,"   غ/فضى/بدون","طبق وغطاءالمونيوم","THN"]
[null,null,null,null,null,520402116,"   ط/الو/كرو/","طبق وغطاءالمونيوم","EA."]
[null,null,null,null,null,520402118,"   غ/أزرق/شعا","طبق وغطاءالمونيوم","EA."]
[null,null,null,null,null,520402119,"   غ/أبيض/شعا","طبق وغطاءالمونيوم","EA."]
[null,null,null,null,null,520402120,"   غ/أحمر/شعا","طبق وغطاءالمونيوم","EA."]
[null,null,null,null,null,520402122,"   رول 150متر","طبق وغطاءالمونيوم","EA."]
[null,null,null,null,null,520402126,"   ط/الو/بدون","طبق وغطاءالمونيوم","THN"]
[null,null,null,null,null,520402127,"   غ/أحمربدون","طبق وغطاءالمونيوم","EA."]
[null,null,null,null,null,520402128,"   غ/أزرق بدو","طبق وغطاءالمونيوم","EA."]
[null,null,null,null,null,520402129,"   غ/ذهبىبدون","طبق وغطاءالمونيوم","EA."]
[null,null,null,null,null,520402130,"   غ/أبيض بدو","طبق وغطاءالمونيوم","EA."]
[null,null,null,null,null,520402131,"   طبق171×103","طبق وغطاءالمونيوم","EA."]
[null,null,null,null,null,520402132,"   ط/د/سياحى ","طبق وغطاءالمونيوم","EA."]
[null,null,null,null,null,520402144,"   سرفيس كبير","طبق وغطاءالمونيوم","EA."]
[null,null,null,null,null,520402145,"   ط/فضى شعار","طبق وغطاءالمونيوم","EA."]
[null,null,null,null,null,520501113,"        ص 1/ز27بيج","صينية بلستيك","EA."]
[null,null,null,null,null,520501114,"        ص /بيج /ك ","صينية بلستيك","EA."]
[null,null,null,null,null,520501117,"        صينيه ايزي","صينية بلستيك","EA."]
[null,null,null,null,null,520501118,"        صينيه صغير","صينية بلستيك","EA."]
[null,null,null,null,null,520501119,"        ص اكسبريس ","صينية بلستيك","EA."]
[null,null,null,null,null,520501120,"        لبنى2/3متو","صينية بلستيك","EA."]
[null,null,null,null,null,520501122,"        ص2/3حكل-صغ","صينية بلستيك","EA."]
[null,null,null,null,null,520502109,"          أبيض ","طبق ميلمينXأزرق","EA."]
[null,null,null,null,null,520502114,"          ط/مست أ×أز","طبق ميلمين","EA."]
[null,null,null,null,null,520502117,"          ط/م/نحاسى/","طبق ميلمين","EA."]
[null,null,null,null,null,520502119,"          اكسبريس   ","طبق ميلمين","EA."]
[null,null,null,null,null,520503101," ميلمين مست","     غطاءطبق بلستيك","EA."]
[null,null,null,null,null,520503102," مربع فاكي","     غطاءطبق بلستيك ","THN"]
[null,null,null,null,null,520503103," صينى مستطي","     غطاءطبق بلستيك","EA."]
[null,null,null,null,null,520503104," صينى مربع ","     غطاءطبق بلستيك","EA."]
[null,null,null,null,null,520503105," باول ص 0مد","     غطاءطبق بلستيك","EA."]
[null,null,null,null,null,520503106," غ/اكسبريس ","     غطاءطبق بلستيك","EA."]
[null,null,null,null,null,520503111," غطاء للعيش","     غطاءطبق بلستيك","EA."]
[null,null,null,null,null,520503113," غ/طبق جديد","     غطاءطبق بلستيك","EA."]
[null,null,null,null,null,520505105,"فنجان شاى ","فنجان شاى بلستيك ميل","THN"]
[null,null,null,null,null,520505110,"ف/أزر×أبيض","فنجان شاى بلستيك ميل","EA."]
[null,null,null,null,null,520505111,"ف/ازرق شعا","فنجان شاى بلستيك ميل","EA."]
[null,null,null,null,null,520505112,"ف/ازرق بدو","فنجان شاى بلستيك ميل","EA."]
[null,null,null,null,null,520505113,"ف/اكسبريس ","فنجان شاى بلستيك ميل","EA."]
[null,null,null,null,null,520505114,"ف/مستهلك/ك","فنجان شاى بلستيك ميل","EA."]
[null,null,null,null,null,520506103,"               ابيض      ","أكواب","THN"]
[null,null,null,null,null,520506104,"               شفاف      ","أكواب","THN"]
[null,null,null,null,null,520506105,"               باول ","أكواب     ","THN"]
[null,null,null,null,null,520506108,"               باول مستطل","أكواب","THN"]
[null,null,null,null,null,520506113,"               كوب شفاف ج","أكواب","EA."]
[null,null,null,null,null,520506116,"               ب/ف/مربع أ","أكواب","EA."]
[null,null,null,null,null,520506117,"               غطاء باول ","أكواب","EA."]
[null,null,null,null,null,520506118,"               طبق مستطيل","أكواب","EA."]
[null,null,null,null,null,520506119,"               باول 7,5  ","أكواب","EA."]
[null,null,null,null,null,520506120,"               أكواب"," 7,5X7,5/غ","EA."]
[null,null,null,null,null,520506143,"               باول/م/نحا","أكواب","EA."]
[null,null,null,null,null,520506144,"               باول مستطي","أكواب","EA."]
[null,null,null,null,null,520506154,"               كوب8ونزشعا","أكواب","EA."]
[null,null,null,null,null,520506156,"               ط/ف/كحلى/م","أكواب","EA."]
[null,null,null,null,null,520507101,"         سكينه     ","فضيه بلستيك","THN"]
[null,null,null,null,null,520507102,"         شوكة      ","فضيه بلستيك","THN"]
[null,null,null,null,null,520507103,"         ملعقة شاى ","فضيه بلستيك","THN"]
[null,null,null,null,null,520507104,"         ملعقةتقليب","فضيه بلستيك","THN"]
[null,null,null,null,null,520507105,"         معلقةشوربة","فضيه بلستيك","EA."]
[null,null,null,null,null,520508101,"         قاعدةملحة ","اطقم بلستيك","THN"]
[null,null,null,null,null,520508104,"         كيس 8×1   ","اطقم بلستيك","EA."]
[null,null,null,null,null,520508105,"         ملعقة","اطقم بلستيك2/1×9","THN"]
[null,null,null,null,null,520508107,"         ش","اطقم بلستيك1X11كوفير","THN"]
[null,null,null,null,null,520508108,"         اطقم بلستيك"," 1 X5كوفير","EA."]
[null,null,null,null,null,520508110,"         كوفير 6×1 ","اطقم بلستيك","EA."]
[null,null,null,null,null,520508112,"         كوفير1×11ش","اطقم بلستيك","EA."]
[null,null,null,null,null,520508114,"         كليبس ابيض","اطقم بلستيك","EA."]
[null,null,null,null,null,520508116,"         ك5×1بدون م","اطقم بلستيك","EA."]
[null,null,null,null,null,520508119,"         اطقم بلستيك"," 1 X9كوفير","EA."]
[null,null,null,null,null,520508120,"         أ","اطقم بلستيك1X10كوفير","EA."]
[null,null,null,null,null,520508121,"         كوفير 11×1","اطقم بلستيك","EA."]
[null,null,null,null,null,520508122,"         طقم كوفير ","اطقم بلستيك","EA."]
[null,null,null,null,null,520508123,"         كوفير اكسب","اطقم بلستيك","EA."]
[null,null,null,null,null,520508125,"         كوفير4×1بد","اطقم بلستيك","EA."]
[null,null,null,null,null,520508126,"         كوفير10×1 ","اطقم بلستيك","EA."]
[null,null,null,null,null,520509104," علب/سند/كب"," علب بلستيك وسناكس ","EA."]
[null,null,null,null,null,520509105," علبةكبيرة"," علب بلستيك وسناكس  ","EA."]
[null,null,null,null,null,520509106," طبق فوم   "," علب بلستيك وسناكس ","THN"]
[null,null,null,null,null,520509108," علبةشفافة "," علب بلستيك وسناكس ","EA."]
[null,null,null,null,null,520509109," بلستك بغطا"," علب بلستيك وسناكس ","EA."]
[null,null,null,null,null,520509110," غ/علبةوجبا"," علب بلستيك وسناكس ","EA."]
[null,null,null,null,null,520509112," لنش بوكس  "," علب بلستيك وسناكس ","EA."]
[null,null,null,null,null,520509114," علبةك/ب/ش "," علب بلستيك وسناكس ","EA."]
[null,null,null,null,null,520509115," ع/ص /ش متص"," علب بلستيك وسناكس ","EA."]
[null,null,null,null,null,520509117," لنش بوكس ش"," علب بلستيك وسناكس ","EA."]
[null,null,null,null,null,520509118," سناكس بدون"," علب بلستيك وسناكس ","EA."]
[null,null,null,null,null,520509119," علبه لنش ش"," علب بلستيك وسناكس ","EA."]
[null,null,null,null,null,520509120," ع/لنش/كحلى"," علب بلستيك وسناكس ","EA."]
[null,null,null,null,null,520509121," ع/لنش شروق"," علب بلستيك وسناكس ","EA."]
[null,null,null,null,null,520509122," لنش أبيض ش"," علب بلستيك وسناكس ","EA."]
[null,null,null,null,null,520509123," ع/وجب/أزرق"," علب بلستيك وسناكس ","EA."]
[null,null,null,null,null,520509124," ع/فرنسى22س"," علب بلستيك وسناكس ","EA."]
[null,null,null,null,null,520509125," طبق فوم1ك "," علب بلستيك وسناكس ","EA."]
[null,null,null,null,null,520509128," ع/وجبةبدون"," علب بلستيك وسناكس ","EA."]
[null,null,null,null,null,520509129," ع/سند26بدو"," علب بلستيك وسناكس ","EA."]
[null,null,null,null,null,520511101,"       بالعدد    ","شاليمو بلستيك","EA."]
[null,null,null,null,null,520516008,"    علبه بغطاء","معدات ايرو كافية","EA."]
[null,null,null,null,null,520603101,"ريشة شيش ك","       ريشة شيش كباب","THN"]
[null,null,null,null,null,520604102,"           بالباكو   ","خلة اسنان","BOX"]
[null,null,null,null,null,520701124,"            كوب مياه/ع","كاس زجاج","EA."]
[null,null,null,null,null,520701125,"            كوب زجاج ش","كاس زجاج","EA."]
[null,null,null,null,null,520702001,"               ستاره هواء","ستارة","EA."]
[null,null,null,null,null,525604101,"           خله بالعدد","خلة اسنان","EA."]
[null,null,null,null,null,711202117,"               قفل ازرق  ","هدايا","THN"]
[null,null,null,null,null,711202118,"               قفل اصفر  ","هدايا","THN"]
[null,null,null,null,null,711202119,"               قفل اخضر  ","هدايا","THN"]
[null,null,null,null,null,711202153,"               قفل برتقال","هدايا","THN"]
[null,null,null,null,null,721202102,"               منديل معطر","هدايا","THN"]

{"sheet":"Templete","index":2,"n_rows":112,"n_cols":9,"rows_kept":112,"cut":false,"hidden":false,"merged":[[2,5,2,6],[1,5,1,6],[0,5,0,6]]}
[null,null,null,null,"رقــــم الطــلــبــيــه :",null,null,null,"بالطائره لحاجه العمل الماسه"]
[null,null,null,null,"الــــتـــاريـــــــــــخ :",null,null,null,"بسياره الطلبيه"]
[null,null,null,null,"طريقه الارسال المطلوبه:","بالطائره لحاجه العمل الماسه"]
[]
[null,"م","رقم الصنف","الصنف","المجموعه","الوحده","الكميه المطلوبه","الرصيد","ملاحظات"]
[null,1,120101117,{"$f":"IF(C6<>\"\",VLOOKAnyCol(dataazzam,C6,1,2),\"\")","v":"كبدةبتلو/م"},{"$f":"IF(D6<>\"\",VLOOKAnyCol(dataazzam,C6,1,3),\"\")","v":"بتلو"},{"$f":"IF(E6<>\"\",VLOOKAnyCol(dataazzam,C6,1,4),\"\")","v":"KGM"}]
[null,2,null,{"$f":"IF(C7<>\"\",VLOOKAnyCol(dataazzam,C7,1,2),\"\")","v":""},{"$f":"IF(D7<>\"\",VLOOKAnyCol(dataazzam,C7,1,3),\"\")","v":""},{"$f":"IF(E7<>\"\",VLOOKAnyCol(dataazzam,C7,1,4),\"\")","v":""}]
[null,3,null,{"$f":"IF(C8<>\"\",VLOOKAnyCol(dataazzam,C8,1,2),\"\")","v":""},{"$f":"IF(D8<>\"\",VLOOKAnyCol(dataazzam,C8,1,3),\"\")","v":""},{"$f":"IF(E8<>\"\",VLOOKAnyCol(dataazzam,C8,1,4),\"\")","v":""}]
[null,4]
[null,5]
[null,6]
[null,7]
[null,8]
[null,9,null,{"$f":"IF(C14<>\"\",VLOOKUP(C14,dataazzam,2,2),\"\")","v":""},{"$f":"IF(D14<>\"\",VLOOKUP(C14,dataazzam,3,2),\"\")","v":""},{"$f":"IF(E14<>\"\",VLOOKUP(C14,dataazzam,4,2),\"\")","v":""}]
[null,10,null,"","",""]
[null,11,null,"","",""]
[null,12,null,{"$f":"IF(C17<>\"\",VLOOKUP(C17,dataazzam,2,2),\"\")","v":""},{"$f":"IF(D17<>\"\",VLOOKUP(C17,dataazzam,3,2),\"\")","v":""},{"$f":"IF(E17<>\"\",VLOOKUP(C17,dataazzam,4,2),\"\")","v":""}]
[null,13,null,"","",""]
[null,14,null,"","",""]
[null,15,null,"","",""]
[null,16,null,"","",""]
[null,17,null,"","",""]
[null,18,null,"","",""]
[null,19,null,"","",""]
[null,20,null,"","",""]
[null,21,null,"","",""]
[null,22,null,"","",""]
[null,23,null,"","",""]
[null,24,null,"","",""]
[null,25,null,"","",""]
[null,26,null,"","",""]
[null,27,null,"","",""]
[null,28,null,"","",""]
[null,29,null,"","",""]
[null,30,null,"","",""]
[null,31,null,"","",""]
[null,32,null,"","",""]
[null,33,null,"","",""]
[null,34,null,"","",""]
[null,35,null,"","",""]
[null,36,null,"","",""]
[null,37,null,"","",""]
[null,38,null,"","",""]
[null,39,null,"","",""]
[null,40,null,"","",""]
[null,41,null,"","",""]
[null,42,null,"","",""]
[null,43,null,"","",""]
[null,44,null,{"$f":"IF(C49<>\"\",VLOOKUP(C49,dataazzam,2,2),\"\")","v":""},{"$f":"IF(D49<>\"\",VLOOKUP(C49,dataazzam,3,2),\"\")","v":""},{"$f":"IF(E49<>\"\",VLOOKUP(C49,dataazzam,4,2),\"\")","v":""}]
[null,45,null,"","",""]
[null,46,null,"","",""]
[null,47,null,"","",""]
[null,48,null,"","",""]
[null,49,null,"","",""]
[null,50,null,"","",""]
[null,51,null,"","",""]
[null,52,null,"","",""]
[null,53,null,"","",""]
[null,54,null,"","",""]
[null,55,null,"","",""]
[null,56,null,"","",""]
[null,57,null,"","",""]
[null,58,null,"","",""]
[null,59,null,"","",""]
[null,60,null,"","",""]
[null,61,null,"","",""]
[null,62,null,"","",""]
[null,63,null,"","",""]
[null,64,null,"","",""]
[null,65,null,"","",""]
[null,66,null,"","",""]
[null,67,null,"","",""]
[null,68,null,"","",""]
[null,69,null,"","",""]
[null,70,null,"","",""]
[null,71,null,"","",""]
[null,72,null,"","",""]
[null,73,null,"","",""]
[null,74,null,"","",""]
[null,75,null,"","",""]
[null,76,null,{"$f":"IF(C81<>\"\",VLOOKUP(C81,dataazzam,2,2),\"\")","v":""},{"$f":"IF(D81<>\"\",VLOOKUP(C81,dataazzam,3,2),\"\")","v":""},{"$f":"IF(E81<>\"\",VLOOKUP(C81,dataazzam,4,2),\"\")","v":""}]
[null,77,null,"","",""]
[null,78,null,"","",""]
[null,79,null,"","",""]
[null,80,null,"","",""]
[null,81,null,"","",""]
[null,82,null,"","",""]
[null,83,null,"","",""]
[null,84,null,"","",""]
[null,85,null,"","",""]
[null,86,null,"","",""]
[null,87,null,"","",""]
[null,88,null,"","",""]
[null,89,null,"","",""]
[null,null,null,"","",""]
[null,null,null,"","",""]
[null,null,null,"","",""]
[null,null,null,"","",""]
[null,null,null,"","",""]
[null,null,null,"","",""]
[null,null,null,"","",""]
[null,null,null,"","",""]
[null,null,null,"","",""]
[null,null,null,"","",""]
[null,null,null,"","",""]
[null,null,null,"","",""]
[null,null,null,"","",""]
[null,null,null,"","",""]
[null,null,null,"","",""]
[null,null,null,"","",""]
[null,null,null,"","",""]
[null,null,null,"","",""]